Workbook

Sheet Статистика продаж
A1: REM_МШЛ | F1: СУМ ОБЩ | H1: =SUM(СУММА) -> 250980 | T1: 10
A2: Код товара | B2: Артикул | C2: Артикул производителя | D2: по сертификату номер артикула | E2: Наименование товара | F2: ABC | G2: ККТ | H2: ДК | I2: ЦЗ | J2: ОСТ ОБЩ | K2: В ПУТИ | L2: ПРЕДВ ЗАЯВКА | M2: РЕЗЕРВ ОПТ | N2: УХОД ОБЩ | O2: П2 ОБЩ | P2: П1 ОБЩ | Q2: ЗАПАС МАКС | R2: ЗАПАС МИН | S2: ОСТ ДОНОР | T2: ПЛАН | U2: РОСТ ДОНОР | V2: МИН ДОНОР | W2: НЕДОБОР МО ДОНОР | X2: Кол-во дней отсутствия остатка 3 мес | Y2: Кол-во обнулений 3 мес | Z2: СУММА | AA2: Карантин | AB2: ЛБ ОСТ/УХ/МО | AC2: ТМ ОСТ/УХ/МО | AD2: ЗВ ОСТ/УХ/МО | AE2: РОСТ МАКС | AF2: РОСТ МИН | AG2: БРАК+КАРАНТИН | AH2: Группа закупки | AI2: Максимальные продажи | AJ2: Минимальные продажи | AK2: Ост без донора | AL2: Уход донор | AM2: Уход без донора | AN2: Прогноз перемещения с донора | AO2: Прогноз перемещений | AP2: Заказанный товар Люберцы | AQ2: Заказанный товар Томилино | AR2: Люберцы Уходимость | AS2: Томилино Уходимость | AT2: Основное Люберцы | AU2: Основное Томилино | AV2: Предварительная заявка Люберцы | AW2: Предварительная заявка Томилино | AX2: Варшавка Уходимость | AY2: Машково Уходимость | AZ2: Минимум Варшавка | BA2: Основное Варшавка | BB2: Основное Машково | BC2: Основное Машково3 | BD2: Заказанный товар Машково3 | BE2: Минимум Люберцы | BF2: Минимум Томилино | BG2: Заказанный товар Машково | BH2: Опт Общий остаток с транзитами | BI2: Розница Общий остаток с транзитами | BJ2: Остаток регионы | BK2: Предварительная заявка Машково3 | BL2: Суммарная уходимость опт | BM2: В резерве общий опт | BN2: Опт П1 Итого продажа | BO2: Розница П1 Итого продажа | BP2: Опт П2 Итого продажа | BQ2: Предварительная заявка Машково | BR2: Приемка Машково3 | BS2: Стикеровальня Машково | BT2: Стикеровальня Машково 3 | BU2: Приемка Машково | BV2: Основное Машково3 | BW2: В резерве Машково | BX2: Основное Екатеринбург | BY2: Основное Ижевск | BZ2: Основное Нижний Новый | CA2: Основное Новосибирск | CB2: Основное Пермь | CC2: Основное Уфа | CD2: Основное Уфа2 | CE2: Код по прайсу основного поставщика | CF2: Приемка Томилино | CG2: В резерве Томилино | CH2: Томилино П2 Итого продажа | CI2: Томилино П1 Итого продажа | CJ2: Стикеровальня Томилино | CK2: Сезонный товар
A3: 645953 | B3: 022100 | C3: 022100 | E3: Зеркало боковое универсальное с кронштейном 140мм БОР | G3: + | I3: 304 | J3: =MAX(0,Опт__Общий_остаток_с_транзитами-Остаток_регионы-Основное_Томилино-Приемка_Томилино-Стикеровальня_Томилино) -> 0 | K3: =Заказанный_товар_Люберцы+Заказанный_товар_Машково+Заказанный_товар_Машково3 -> 0 | L3: =Предварительная_заявка_Машково+Предварительная_заявка_Люберцы+Предварительная_заявка_Машково3 -> 0 | M3: =В_резерве_общий__опт-В_резерве_Томилино -> 0 | N3: =Суммарная_уходимость_опт*22-Томилино_Уходимость*22 -> 0 | O3: =Опт__П2_Итого_продажа-Томилино_П2_Итого_продажа -> 0 | P3: =Опт__П1_Итого_продажа-Томилино_П1_Итого_продажа -> 0 | Q3: =IFERROR(РОСТ_МАКС/Максимальные_продажи,"") ->  | R3: =IFERROR(РОСТ_МИН/Минимальные_продажи,"") ->  | S3: =MAX(0,Основное_Машково+Основное_Машково3+Приемка_Машково+Приемка_Машково3+Стикеровальня_Машково+Стикеровальня_Машково___3-В_резерве_Машково) -> 0 | U3: =ROUND(IF(ОСТ_ДОНОР+(Заказанный_товар_Машково+Заказанный_товар_Машково3)>(Уход_донор/30*ПР1+Прогноз_перемещения_с_донора),MAX(ОСТ_ДОНОР+(Заказанный_товар_Машково+Заказанный_товар_Машково3+Предварительная_заявка_Машково+Предварительная_заявка_Машково3)-(Уход_донор/30*ПЛ1+Прогноз_перемещения_с_донора),0),MAX((Предварительная_заявка_Машково+Предварительная_заявка_Машково3)-(Уход_донор/30*(ПЛ1-ПР1)+Прогноз_перемещения_с_донора),0)),0)+ПЛАН -> 0 | V3: 0 | W3: =IF(РОСТ_ДОНОР-МИН_ДОНОР>0,0,РОСТ_ДОНОР-МИН_ДОНОР) -> 0 | Z3: =IF(ЦЗ*ПЛАН=0,0,ЦЗ*ПЛАН) -> 0 | AB3: =IF(Основное_Люберцы,Основное_Люберцы,"--")&" / "&IF(Люберцы_Уходимость,CEILING(Люберцы_Уходимость*22,1),"--")&" / "&IF(Минимум_Люберцы,Минимум_Люберцы,"--") -> -- / -- / -- | AC3: =IF(Основное_Томилино,Основное_Томилино,"--")&" / "&IF(Томилино_Уходимость,CEILING(Томилино_Уходимость*22,1),"--")&" / "&IF(Минимум_Томилино,Минимум_Томилино,"--") -> -- / -- / -- | AD3: =IF(Основное_Варшавка,Основное_Варшавка,"--")&" / "&IF(Варшавка_Уходимость,CEILING(Варшавка_Уходимость*22,1),"--")&" / "&IF(Минимум_Варшавка,Минимум_Варшавка,"--") -> -- / -- / -- | AE3: =IF(ОСТ_ОБЩ+В_ПУТИ-РЕЗЕРВ_ОПТ>Максимальные_продажи/30*ПР1,MAX(ОСТ_ОБЩ+В_ПУТИ-РЕЗЕРВ_ОПТ+ПРЕДВ_ЗАЯВКА-Максимальные_продажи/30*ПЛ1,0),MAX(ПРЕДВ_ЗАЯВКА-Максимальные_продажи/30*(ПЛ1-ПР1),0))+ПЛАН -> 0 | AF3: =IF(ОСТ_ОБЩ+В_ПУТИ-РЕЗЕРВ_ОПТ>Минимальные_продажи/30*ПР1,MAX(ОСТ_ОБЩ+В_ПУТИ-РЕЗЕРВ_ОПТ+ПРЕДВ_ЗАЯВКА-Минимальные_продажи/30*ПЛ1,0),MAX(ПРЕДВ_ЗАЯВКА-Минимальные_продажи/30*(ПЛ1-ПР1),0))+ПЛАН -> 0 | AH3: ЗЕРКАЛА-БОР(МШЛ)(%)(#)(В) | AI3: =MAX(--УХОД_ОБЩ,--П2_ОБЩ,--П1_ОБЩ/3) -> 0 | AJ3: =MIN(--УХОД_ОБЩ,--П2_ОБЩ,--П1_ОБЩ/3) -> 0 | AK3: =ОСТ_ОБЩ-ОСТ_ДОНОР+Заказанный_товар_Люберцы+Предварительная_заявка_Люберцы+Заказанный_товар_Томилино+Предварительная_заявка_Томилино -> 0 | AL3: =Машково_Уходимость*22 -> 0 | AM3: =УХОД_ОБЩ-Машково_Уходимость*22 -> 0 | AN3: =IF(Уход_без_донора/30*ПЛ1-(Ост_без_донора-Уход_без_донора/30*ПЛ1)>0,Уход_без_донора/30*ПЛ1-(Ост_без_донора-Уход_без_донора/30*ПЛ1),0) -> 0 | AO3: =IF(Ост_без_донора-Уход_без_донора/30*ПЛ1>=Уход_без_донора,0,Уход_без_донора-Ост_без_донора+Уход_без_донора/30*ПЛ1) -> 0 | AR3: 0 | AS3: 0 | AX3: 0 | AY3: 0 | BJ3: =Основное_Екатеринбург+Основное_Нижний_Новый+Основное_Новосибирск+Основное_Уфа2+Основное_Ижевск -> 0 | BL3: 0 | BN3: 0 | BO3: 0 | BP3: 0 | CH3: 0 | CI3: 0
A4: 898012 | B4: 3302-8201416 | C4: 3302-8201416 | D4: 3302-9201416 | E4: Зеркало боковое ГАЗ-3302 основное сферическое правое 246х147мм БОР | F4: CY | G4: А | I4: 145 | J4: =MAX(0,Опт__Общий_остаток_с_транзитами-Остаток_регионы-Основное_Томилино-Приемка_Томилино-Стикеровальня_Томилино) -> 13 | K4: =Заказанный_товар_Люберцы+Заказанный_товар_Машково+Заказанный_товар_Машково3 -> 0 | L4: =Предварительная_заявка_Машково+Предварительная_заявка_Люберцы+Предварительная_заявка_Машково3 -> 0 | M4: =В_резерве_общий__опт-В_резерве_Томилино -> 0 | N4: =Суммарная_уходимость_опт*22-Томилино_Уходимость*22 -> 12.76 | O4: =Опт__П2_Итого_продажа-Томилино_П2_Итого_продажа -> 22 | P4: =Опт__П1_Итого_продажа-Томилино_П1_Итого_продажа -> 64 | Q4: =IFERROR(РОСТ_МАКС/Максимальные_продажи,"") -> 0.7121212121 | R4: =IFERROR(РОСТ_МИН/Минимальные_продажи,"") -> 1.469174504 | S4: =MAX(0,Основное_Машково+Основное_Машково3+Приемка_Машково+Приемка_Машково3+Стикеровальня_Машково+Стикеровальня_Машково___3-В_резерве_Машково) -> 10 | T4: 10 | U4: =ROUND(IF(ОСТ_ДОНОР+(Заказанный_товар_Машково+Заказанный_товар_Машково3)>(Уход_донор/30*ПР1+Прогноз_перемещения_с_донора),MAX(ОСТ_ДОНОР+(Заказанный_товар_Машково+Заказанный_товар_Машково3+Предварительная_заявка_Машково+Предварительная_заявка_Машково3)-(Уход_донор/30*ПЛ1+Прогноз_перемещения_с_донора),0),MAX((Предварительная_заявка_Машково+Предварительная_заявка_Машково3)-(Уход_донор/30*(ПЛ1-ПР1)+Прогноз_перемещения_с_донора),0)),0)+ПЛАН -> 16 | V4: 12 | W4: =IF(РОСТ_ДОНОР-МИН_ДОНОР>0,0,РОСТ_ДОНОР-МИН_ДОНОР) -> 0 | X4: 5 | Y4: 1 | Z4: =IF(ЦЗ*ПЛАН=0,0,ЦЗ*ПЛАН) -> 1450 | AB4: =IF(Основное_Люберцы,Основное_Люберцы,"--")&" / "&IF(Люберцы_Уходимость,CEILING(Люберцы_Уходимость*22,1),"--")&" / "&IF(Минимум_Люберцы,Минимум_Люберцы,"--") -> 2 / 1 / 4 | AC4: =IF(Основное_Томилино,Основное_Томилино,"--")&" / "&IF(Томилино_Уходимость,CEILING(Томилино_Уходимость*22,1),"--")&" / "&IF(Минимум_Томилино,Минимум_Томилино,"--") -> 1 / 1 / -- | AD4: =IF(Основное_Варшавка,Основное_Варшавка,"--")&" / "&IF(Варшавка_Уходимость,CEILING(Варшавка_Уходимость*22,1),"--")&" / "&IF(Минимум_Варшавка,Минимум_Варшавка,"--") -> -- / -- / -- | AE4: =IF(ОСТ_ОБЩ+В_ПУТИ-РЕЗЕРВ_ОПТ>Максимальные_продажи/30*ПР1,MAX(ОСТ_ОБЩ+В_ПУТИ-РЕЗЕРВ_ОПТ+ПРЕДВ_ЗАЯВКА-Максимальные_продажи/30*ПЛ1,0),MAX(ПРЕДВ_ЗАЯВКА-Максимальные_продажи/30*(ПЛ1-ПР1),0))+ПЛАН -> 15.66666667 | AF4: =IF(ОСТ_ОБЩ+В_ПУТИ-РЕЗЕРВ_ОПТ>Минимальные_продажи/30*ПР1,MAX(ОСТ_ОБЩ+В_ПУТИ-РЕЗЕРВ_ОПТ+ПРЕДВ_ЗАЯВКА-Минимальные_продажи/30*ПЛ1,0),MAX(ПРЕДВ_ЗАЯВКА-Минимальные_продажи/30*(ПЛ1-ПР1),0))+ПЛАН -> 18.74666667 | AH4: ЗЕРКАЛА-БОР(МШЛ)(%)(#)(В) | AI4: =MAX(--УХОД_ОБЩ,--П2_ОБЩ,--П1_ОБЩ/3) -> 22 | AJ4: =MIN(--УХОД_ОБЩ,--П2_ОБЩ,--П1_ОБЩ/3) -> 12.76 | AK4: =ОСТ_ОБЩ-ОСТ_ДОНОР+Заказанный_товар_Люберцы+Предварительная_заявка_Люберцы+Заказанный_товар_Томилино+Предварительная_заявка_Томилино -> 3 | AL4: =Машково_Уходимость*22 -> 12.32 | AM4: =УХОД_ОБЩ-Машково_Уходимость*22 -> 0.44 | AN4: =IF(Уход_без_донора/30*ПЛ1-(Ост_без_донора-Уход_без_донора/30*ПЛ1)>0,Уход_без_донора/30*ПЛ1-(Ост_без_донора-Уход_без_донора/30*ПЛ1),0) -> 0 | AO4: =IF(Ост_без_донора-Уход_без_донора/30*ПЛ1>=Уход_без_донора,0,Уход_без_донора-Ост_без_донора+Уход_без_донора/30*ПЛ1) -> 0 | AR4: 0.03 | AS4: 0.01 | AT4: 2 | AU4: 1 | AX4: 0 | AY4: 0.56 | BB4: 10 | BE4: 4 | BH4: 14 | BI4: 8 | BJ4: =Основное_Екатеринбург+Основное_Нижний_Новый+Основное_Новосибирск+Основное_Уфа2+Основное_Ижевск -> 0 | BL4: 0.59 | BN4: 65 | BO4: 10 | BP4: 23 | CB4: 2 | CH4: 1 | CI4: 1
A5: 618603 | B5: 040100 (ZL-133) | C5: 040100 | D5: V4-133 | E5: Зеркало боковое ЗИЛ,ГАЗ основное сферическое без подогрева 304х184мм БОР | G5: + | I5: 176 | J5: 0 | K5: 0 | L5: 0 | M5: 0 | N5: 0 | O5: 0 | P5: 0 | S5: 0 | U5: 0 | V5: 0 | W5: 0 | Z5: 0 | AB5: -- / -- / -- | AC5: -- / -- / -- | AD5: -- / -- / -- | AE5: 0 | AF5: 0 | AH5: ЗЕРКАЛА-БОР(МШЛ)(%)(#)(В) | AI5: 0 | AJ5: 0 | AK5: 0 | AL5: 0 | AM5: 0 | AN5: 0 | AO5: 0 | AR5: 0 | AS5: 0 | AX5: 0 | AY5: 0 | BJ5: 0 | BL5: 0 | BN5: 0 | BO5: 0 | BP5: 0 | CH5: 0 | CI5: 0
A6: 173223 | B6: V4(ZL-133H) пласт.корпус | C6: 040101 | D6: V4-133 | E6: Зеркало боковое ЗИЛ,ГАЗ основное сферическое без подогрева 300х165мм БОР | F6: CZ | G6: П | I6: 182 | J6: 0 | K6: 0 | L6: 0 | M6: 0 | N6: 0 | O6: 0 | P6: 0 | S6: 0 | U6: 0 | V6: 0 | W6: 0 | Z6: 0 | AB6: -- / -- / -- | AC6: -- / -- / -- | AD6: -- / -- / -- | AE6: 0 | AF6: 0 | AH6: ЗЕРКАЛА-БОР(МШЛ)(%)(#)(В) | AI6: 0 | AJ6: 0 | AK6: 0 | AL6: 0 | AM6: 0 | AN6: 0 | AO6: 0 | AR6: 0 | AS6: 0 | AX6: 0 | AY6: 0 | BJ6: 0 | BL6: 0 | BN6: 0 | BO6: 0 | BP6: 0 | CH6: 0 | CI6: 0
A7: 540820 | B7: 150х115Л | C7: 150х115Л | E7: Элемент обогрева зеркала 12V 150х112мм левое с клеммой БОР | G7: + | I7: 54 | J7: 0 | K7: 0 | L7: 0 | M7: 0 | N7: 0 | O7: 0 | P7: 0 | S7: 0 | U7: 0 | V7: 0 | W7: 0 | Z7: 0 | AB7: -- / -- / -- | AC7: -- / -- / -- | AD7: -- / -- / -- | AE7: 0 | AF7: 0 | AH7: ЗЕРКАЛА-БОР(МШЛ)(%)(#)(В) | AI7: 0 | AJ7: 0 | AK7: 0 | AL7: 0 | AM7: 0 | AN7: 0 | AO7: 0 | AR7: 0 | AS7: 0 | AX7: 0 | AY7: 0 | BJ7: 0 | BL7: 0 | BN7: 0 | BO7: 0 | BP7: 0 | CH7: 0 | CI7: 0
A8: 540821 | B8: 150х115П | C8: 150х115П | E8: Элемент обогрева зеркала 12V 150х112мм правое с клеммой БОР | G8: + | I8: 54 | J8: 0 | K8: 0 | L8: 0 | M8: 0 | N8: 0 | O8: 0 | P8: 0 | S8: 0 | U8: 0 | V8: 0 | W8: 0 | Z8: 0 | AB8: -- / -- / -- | AC8: -- / -- / -- | AD8: -- / -- / -- | AE8: 0 | AF8: 0 | AH8: ЗЕРКАЛА-БОР(МШЛ)(%)(#)(В) | AI8: 0 | AJ8: 0 | AK8: 0 | AL8: 0 | AM8: 0 | AN8: 0 | AO8: 0 | AR8: 0 | AS8: 0 | AX8: 0 | AY8: 0 | BJ8: 0 | BL8: 0 | BN8: 0 | BO8: 0 | BP8: 0 | CH8: 0 | CI8: 0
A9: 898014 | B9: 3302-8201416 | C9: 3302-8201416 | D9: 3302-9201416 | E9: Зеркало боковое ГАЗ-3302 основное сферическое с подогревом правое 12V БОР | F9: CZ | G9: А | I9: 166 | J9: 3 | K9: 0 | L9: 0 | M9: 1 | N9: 1.1 | O9: 1 | P9: 2 | Q9: 5.121212121 | R9: 8.666666667 | S9: 2 | T9: 4 | U9: 6 | V9: 6 | W9: 0 | Z9: 664 | AB9: -- / -- / -- | AC9: 3 / 1 / -- | AD9: -- / -- / -- | AE9: 5.633333333 | AF9: 5.777777778 | AH9: ЗЕРКАЛА-БОР(МШЛ)(%)(#)(В) | AI9: 1.1 | AJ9: 0.6666666667 | AK9: 1 | AL9: 0.88 | AM9: 0.22 | AN9: 0 | AO9: 0 | AR9: 0 | AS9: 0.03 | AU9: 3 | AX9: 0 | AY9: 0.04 | BB9: 3 | BH9: 6 | BI9: 7 | BJ9: 0 | BL9: 0.08 | BM9: 1 | BN9: 4 | BO9: 4 | BP9: 2 | BW9: 1 | CH9: 1 | CI9: 2
A10: 898011 | B10: 3302-8201417 | C10: 3302-8201417 | D10: 3302-9201417 | E10: Зеркало боковое ГАЗ-3302 основное сферическое левое 246х147мм БОР | F10: CY | G10: А | I10: 145 | J10: 13 | K10: 0 | L10: 0 | M10: 0 | N10: 7.04 | O10: 8 | P10: 30 | Q10: 1.466666667 | R10: 2.223484848 | S10: 9 | T10: 5 | U10: 12 | V10: 12 | W10: 0 | X10: 5 | Y10: 1 | Z10: 725 | AB10: 4 / 2 / 4 | AC10: 1 / 2 / -- | AD10: -- / -- / -- | AE10: 14.66666667 | AF10: 15.65333333 | AH10: ЗЕРКАЛА-БОР(МШЛ)(%)(#)(В) | AI10: 10 | AJ10: 7.04 | AK10: 4 | AL10: 5.06 | AM10: 1.98 | AN10: 0 | AO10: 0 | AR10: 0.09 | AS10: 0.09 | AT10: 4 | AU10: 1 | AX10: 0 | AY10: 0.23 | BB10: 9 | BE10: 4 | BH10: 14 | BI10: 12 | BJ10: 0 | BL10: 0.41 | BN10: 35 | BO10: 5 | BP10: 8 | CB10: 2 | CH10: 0 | CI10: 5
A11: 898013 | B11: 3302-8201417 | C11: 3302-8201417 | D11: 3302-9201417 | E11: Зеркало боковое ГАЗ-3302 основное сферическое с подогревом левое 12V БОР | F11: CZ | G11: А | I11: 166 | J11: 3 | K11: 0 | L11: 0 | M11: 0 | N11: 1.32 | O11: 2 | P11: 3 | Q11: 2.666666667 | R11: 5.666666667 | S11: 3 | T11: 3 | U11: 6 | V11: 6 | W11: 0 | Z11: 498 | AB11: -- / -- / -- | AC11: 6 / 1 / -- | AD11: -- / -- / -- | AE11: 5.333333333 | AF11: 5.666666667 | AH11: ЗЕРКАЛА-БОР(МШЛ)(%)(#)(В) | AI11: 2 | AJ11: 1 | AK11: 0 | AL11: 1.32 | AM11: 0 | AN11: 0 | AO11: 0 | AR11: 0 | AS11: 0.02 | AU11: 6 | AX11: 0 | AY11: 0.06 | BB11: 3 | BH11: 9 | BI11: 8 | BJ11: 0 | BL11: 0.08 | BN11: 4 | BO11: 3 | BP11: 2 | CH11: 0 | CI11: 1
A12: 898015 | B12: 4301-8201418 | C12: 4301-8201418 | D12: 3307-4301-8201418 | E12: Зеркало боковое ГАЗ-3307,4301 пластмас. 288х150 БОР | F12: BY | G12: А | I12: 216 | J12: 39 | K12: 0 | L12: 0 | M12: 0 | N12: 30.14 | O12: 59 | P12: 146 | Q12: 0.7514124294 | R12: 1.790090688 | S12: 19 | T12: 25 | U12: 35 | V12: 25 | W12: 0 | X12: 0 | Y12: 0 | Z12: 5400 | AB12: 18 / 4 / 2 | AC12: -- / 7 / -- | AD12: -- / -- / -- | AE12: 44.33333333 | AF12: 53.95333333 | AH12: ЗЕРКАЛА-БОР(МШЛ)(%)(#)(В) | AI12: 59 | AJ12: 30.14 | AK12: 20 | AL12: 25.74 | AM12: 4.4 | AN12: 0 | AO12: 0 | AR12: 0.17 | AS12: 0.28 | AT12: 18 | AX12: 0 | AY12: 1.17 | BB12: 19 | BE12: 2 | BH12: 39 | BI12: 14 | BJ12: 0 | BL12: 1.65 | BN12: 149 | BO12: 11 | BP12: 59 | CB12: 2 | CH12: 0 | CI12: 3
A13: 898991 | B13: САКД 458.201.050 | C13: 206 (458.201.050) | D13: 458.201.050 | E13: Зеркало боковое КАМАЗ,МАЗ основное сферическое без обогрева 430х200 БОР | F13: BX | G13: А | I13: 259 | J13: 143 | K13: 0 | L13: 0 | M13: 4 | N13: 116.82 | O13: 105 | P13: 264 | Q13: 1.755350111 | R13: 2.439393939 | S13: 76 | T13: 105 | U13: 165 | V13: 165 | W13: 0 | X13: 0 | Y13: 0 | Z13: 27195 | AB13: 26 / 25 / 10 | AC13: -- / 13 / -- | AD13: 20 / 12 / 8 | AE13: 205.06 | AF13: 214.6666667 | AH13: ЗЕРКАЛА-БОР(МШЛ)(%)(#)(В) | AI13: 116.82 | AJ13: 88 | AK13: 97 | AL13: 46.86 | AM13: 69.96 | AN13: 0 | AO13: 0 | AR13: 1.12 | AS13: 0.59 | AT13: 26 | AW13: 30 | AX13: 0.52 | AY13: 2.13 | AZ13: 8 | BA13: 20 | BB13: 78 | BE13: 10 | BH13: 170 | BI13: 38 | BJ13: 27 | BL13: 5.9 | BM13: 4 | BN13: 290 | BO13: 177 | BP13: 107 | BW13: 2 | BX13: 19 | BY13: 4 | CA13: 4 | CB13: 4 | CH13: 2 | CI13: 26
A14: 898992 | B14: САКД 458.201.051-01 | C14: 207 (458.201.051-01) | D14: 458.201.050 | E14: Зеркало боковое КАМАЗ,МАЗ основное сферическое с обогревом 24V 430х200 БОР | F14: CX | G14: А | I14: 305 | J14: 42 | K14: 0 | L14: 0 | M14: 2 | N14: 28.16 | O14: 16 | P14: 58 | Q14: 1.797348485 | R14: 3.416666667 | S14: 24 | T14: 20 | U14: 40 | V14: 40 | W14: 0 | X14: 0 | Y14: 0 | Z14: 6100 | AB14: 12 / 6 / 4 | AC14: 8 / 4 / -- | AD14: -- / -- / -- | AE14: 50.61333333 | AF14: 54.66666667 | AH14: ЗЕРКАЛА-БОР(МШЛ)(%)(#)(В) | AI14: 28.16 | AJ14: 16 | AK14: 28 | AL14: 13.42 | AM14: 14.74 | AN14: 0 | AO14: 0 | AR14: 0.27 | AS14: 0.16 | AT14: 12 | AU14: 8 | AW14: 10 | AX14: 0 | AY14: 0.61 | BB14: 24 | BE14: 4 | BH14: 67 | BI14: 54 | BJ14: 17 | BL14: 1.44 | BM14: 2 | BN14: 63 | BO14: 79 | BP14: 16 | BX14: 13 | CA14: 4 | CC14: 4 | CH14: 0 | CI14: 5
A15: 173219 | B15: S-227/АТ-3148(ZL-148,6105) пласт.корпус | C15: AT33026 | D15: 458.201030 | E15: Зеркало боковое широкоугольное сферическое дополнительное с подогревом 24V 230х230мм БОР | F15: CY | G15: А | I15: 341 | J15: 11 | K15: 0 | L15: 0 | M15: 1 | N15: 9.24 | O15: 11 | P15: 29 | Q15: 1.939393939 | R15: 2.372294372 | S15: 3 | T15: 15 | U15: 17 | V15: 15 | W15: 0 | X15: 0 | Y15: 0 | Z15: 5115 | AB15: 8 / 4 / 4 | AC15: -- / 2 / -- | AD15: -- / -- / -- | AE15: 21.33333333 | AF15: 21.92 | AH15: ЗЕРКАЛА-БОР(МШЛ)(%)(#)(В) | AI15: 11 | AJ15: 9.24 | AK15: 10 | AL15: 2.64 | AM15: 6.6 | AN15: 0 | AO15: 0 | AR15: 0.18 | AS15: 0.06 | AT15: 8 | AW15: 2 | AX15: 0 | AY15: 0.12 | BB15: 3 | BE15: 4 | BH15: 15 | BI15: 24 | BJ15: 4 | BL15: 0.48 | BM15: 1 | BN15: 32 | BO15: 15 | BP15: 11 | BX15: 4 | CH15: 0 | CI15: 3
A16: 200666 | B16: 5320-8201052 | C16: 5320-8201052 | D16: 5320-8201020 | E16: Элемент зеркальный КАМАЗ основной плоский 316х166мм БОР | F16: CY | G16: А | I16: 62 | J16: 4 | K16: 0 | L16: 0 | M16: 0 | N16: 3.96 | O16: 16 | P16: 20 | Q16: 1.5625 | R16: 6.98989899 | S16: 0 | T16: 25 | U16: 25 | V16: 24 | W16: 0 | X16: 11 | Y16: 1 | Z16: 1550 | AB16: 4 / 1 / 6 | AC16: 1 / 1 / -- | AD16: -- / -- / -- | AE16: 25 | AF16: 27.68 | AH16: ЗЕРКАЛА-БОР(МШЛ)(%)(#)(В) | AI16: 16 | AJ16: 3.96 | AK16: 4 | AL16: 2.42 | AM16: 1.54 | AN16: 0 | AO16: 0 | AR16: 0.03 | AS16: 0.03 | AT16: 4 | AU16: 1 | AX16: 0 | AY16: 0.11 | BE16: 6 | BH16: 7 | BI16: 4 | BJ16: 2 | BL16: 0.21 | BN16: 21 | BO16: 8 | BP16: 17 | BX16: 2 | CH16: 1 | CI16: 1
A17: 898994 | B17: 207.8201020 | C17: 207.8201020 | E17: Зеркало боковое МТЗ,ВМТЗ,ЧТЗ основное сферическое с обогревом 12/24V 300х200мм БОР | F17: CZ | G17: П | I17: 725 | J17: 0 | K17: 0 | L17: 0 | M17: 0 | N17: 0 | O17: 4 | P17: 7 | Q17: 0 | S17: 0 | U17: 0 | V17: 0 | W17: 0 | Z17: 0 | AB17: -- / -- / -- | AC17: 2 / -- / -- | AD17: -- / -- / -- | AE17: 0 | AF17: 0 | AH17: ЗЕРКАЛА-БОР(МШЛ)(%)(#)(В) | AI17: 4 | AJ17: 0 | AK17: 0 | AL17: 0 | AM17: 0 | AN17: 0 | AO17: 0 | AR17: 0 | AS17: 0 | AU17: 2 | AX17: 0 | AY17: 0 | BH17: 2 | BI17: 19 | BJ17: 0 | BL17: 0 | BN17: 14 | BO17: 9 | BP17: 4 | CB17: 1 | CH17: 0 | CI17: 7
A18: 955172 | B18: 310х145мм | C18: 310х145мм | E18: Элемент обогрева зеркала 12V/24V 310х145мм с клеммой БОР | F18: CZ | G18: + | I18: 122 | J18: 0 | K18: 0 | L18: 0 | M18: 0 | N18: 0 | O18: 0 | P18: 0 | S18: 0 | U18: 0 | V18: 0 | W18: 0 | Z18: 0 | AB18: -- / -- / -- | AC18: -- / -- / -- | AD18: -- / -- / -- | AE18: 0 | AF18: 0 | AH18: ЗЕРКАЛА-БОР(МШЛ)(%)(#)(В) | AI18: 0 | AJ18: 0 | AK18: 0 | AL18: 0 | AM18: 0 | AN18: 0 | AO18: 0 | AR18: 0 | AS18: 0 | AX18: 0 | AY18: 0 | BH18: 0 | BI18: 2 | BJ18: 0 | BL18: 0 | BN18: 0 | BO18: 0 | BP18: 0 | CH18: 0 | CI18: 0
A19: 955173 | B19: 310х145мм | C19: 310х145мм | E19: Элемент обогрева зеркала 12V/24V 310х145мм с проводом БОР | F19: CZ | G19: П | H19: Т | I19: 123 | J19: 0 | K19: 0 | L19: 0 | M19: 0 | N19: 0 | O19: 0 | P19: 2 | Q19: 0 | S19: 0 | U19: 0 | V19: 0 | W19: 0 | Z19: 0 | AB19: -- / -- / -- | AC19: -- / -- / -- | AD19: -- / -- / -- | AE19: 0 | AF19: 0 | AH19: ЗЕРКАЛА-БОР(МШЛ)(%)(#)(В) | AI19: 0.6666666667 | AJ19: 0 | AK19: 0 | AL19: 0 | AM19: 0 | AN19: 0 | AO19: 0 | AR19: 0 | AS19: 0 | AX19: 0 | AY19: 0 | BJ19: 0 | BL19: 0 | BN19: 2 | BO19: 0 | BP19: 0 | CH19: 0 | CI19: 0
A20: 955169 | B20: 3163-8201070 | C20: 3163-8201070 | E20: Зеркало боковое УАЗ-3163 Патриот правое с электроприводом,подогревом,повторителем поворота БОР | G20: + | I20: 3715 | J20: 0 | K20: 0 | L20: 0 | M20: 0 | N20: 0 | O20: 0 | P20: 0 | S20: 0 | U20: 0 | V20: 0 | W20: 0 | Z20: 0 | AB20: -- / -- / -- | AC20: -- / -- / -- | AD20: -- / -- / -- | AE20: 0 | AF20: 0 | AH20: ЗЕРКАЛА-БОР(МШЛ)(%)(#)(В) | AI20: 0 | AJ20: 0 | AK20: 0 | AL20: 0 | AM20: 0 | AN20: 0 | AO20: 0 | AR20: 0 | AS20: 0 | AX20: 0 | AY20: 0 | BJ20: 0 | BL20: 0 | BN20: 0 | BO20: 0 | BP20: 0 | CH20: 0 | CI20: 0
A21: 955168 | B21: 3163-8201071 | C21: 3163-8201071 | E21: Зеркало боковое УАЗ-3163 Патриот левое с электроприводом,подогревом,повторителем поворота БОР | F21: CZ | G21: П | I21: 3715 | J21: 0 | K21: 0 | L21: 0 | M21: 0 | N21: 0 | O21: 0 | P21: 0 | S21: 0 | U21: 0 | V21: 0 | W21: 0 | Z21: 0 | AB21: -- / -- / -- | AC21: -- / -- / -- | AD21: -- / -- / -- | AE21: 0 | AF21: 0 | AH21: ЗЕРКАЛА-БОР(МШЛ)(%)(#)(В) | AI21: 0 | AJ21: 0 | AK21: 0 | AL21: 0 | AM21: 0 | AN21: 0 | AO21: 0 | AR21: 0 | AS21: 0 | AX21: 0 | AY21: 0 | BJ21: 0 | BL21: 0 | BN21: 0 | BO21: 0 | BP21: 0 | CH21: 0 | CI21: 0
A22: 898016 | B22: 53A-8201418 | C22: 53A-8201418 | D22: 53A-8201418 | E22: Зеркало боковое ГАЗ-53,66 пластмас. 246х147 БОР | F22: CY | G22: А | I22: 145 | J22: 12 | K22: 0 | L22: 0 | M22: 0 | N22: 18.04 | O22: 36 | P22: 90 | Q22: 1.111111111 | R22: 2.549150037 | S22: 6 | T22: 40 | U22: 41 | V22: 40 | W22: 0 | X22: 0 | Y22: 0 | Z22: 5800 | AB22: 4 / 1 / 4 | AC22: -- / 2 / -- | AD22: -- / -- / -- | AE22: 40 | AF22: 45.98666667 | AH22: ЗЕРКАЛА-БОР(МШЛ)(%)(#)(В) | AI22: 36 | AJ22: 18.04 | AK22: 6 | AL22: 16.06 | AM22: 1.98 | AN22: 0 | AO22: 0 | AR22: 0.02 | AS22: 0.08 | AT22: 4 | AX22: 0 | AY22: 0.73 | BB22: 6 | BE22: 4 | BH22: 18 | BI22: 15 | BJ22: 6 | BL22: 0.9 | BN22: 94 | BO22: 9 | BP22: 36 | CA22: 6 | CB22: 2 | CH22: 0 | CI22: 4
A23: 628333 | B23: V-2 (ZL-064) | C23: AT33064 | D23: V2-076 | E23: Зеркало боковое основное сферическое без подогрева 180х180мм БОР | F23: CY | G23: А | I23: 160 | J23: 17 | K23: 0 | L23: 0 | M23: 0 | N23: 7.26 | O23: 27 | P23: 69 | Q23: 1.407407407 | R23: 6.140495868 | S23: 9 | T23: 30 | U23: 37 | V23: 35 | W23: 0 | X23: 0 | Y23: 0 | Z23: 4800 | AB23: 8 / 1 / 2 | AC23: 4 / 1 / -- | AD23: -- / -- / -- | AE23: 38 | AF23: 44.58 | AH23: ЗЕРКАЛА-БОР(МШЛ)(%)(#)(В) | AI23: 27 | AJ23: 7.26 | AK23: 12 | AL23: 6.6 | AM23: 0.66 | AN23: 0 | AO23: 0 | AR23: 0.03 | AS23: 0.02 | AT23: 8 | AU23: 4 | AW23: 4 | AX23: 0 | AY23: 0.3 | BB23: 9 | BE23: 2 | BH23: 27 | BI23: 24 | BJ23: 6 | BL23: 0.35 | BN23: 70 | BO23: 27 | BP23: 27 | BX23: 4 | BZ23: 2 | CH23: 0 | CI23: 1
A24: 642548 | B24: V2/АТ-3064/H | C24: AT33065 | D24: V2-076 | E24: Зеркало боковое основное сферическое с подогревом 24V180х180мм БОР | F24: CY | G24: А | I24: 326 | J24: 26 | K24: 0 | L24: 0 | M24: 0 | N24: 5.28 | O24: 5 | P24: 11 | Q24: 4.590909091 | R24: 6.757575758 | S24: 20 | U24: 19 | V24: 12 | W24: 0 | X24: 6 | Y24: 1 | Z24: 0 | AB24: 6 / 1 / 2 | AC24: 4 / 4 / -- | AD24: -- / -- / -- | AE24: 24.24 | AF24: 24.77777778 | AH24: ЗЕРКАЛА-БОР(МШЛ)(%)(#)(В) | AI24: 5.28 | AJ24: 3.666666667 | AK24: 6 | AL24: 4.4 | AM24: 0.88 | AN24: 0 | AO24: 0 | AR24: 0.04 | AS24: 0.17 | AT24: 6 | AU24: 4 | AX24: 0 | AY24: 0.2 | BB24: 20 | BE24: 2 | BH24: 30 | BI24: 20 | BJ24: 0 | BL24: 0.41 | BN24: 14 | BO24: 13 | BP24: 5 | CB24: 2 | CH24: 0 | CI24: 3
A25: 898989 | B25: V-3 (ZL-148) | C25: V-3 (ZL-148) | D25: V3-148 | E25: Зеркало боковое ЗИЛ,ГАЗ сферическое без обогрева дополнительное 225х170мм БОР | F25: CX | G25: А | I25: 199 | J25: 14 | K25: 0 | L25: 0 | M25: 1 | N25: 8.36 | O25: 15 | P25: 27 | Q25: 1.733333333 | R25: 3.374800638 | S25: 8 | T25: 18 | U25: 24 | V25: 24 | W25: 0 | X25: 0 | Y25: 0 | Z25: 3582 | AB25: 4 / 1 / 2 | AC25: -- / 1 / -- | AD25: -- / -- / -- | AE25: 26 | AF25: 28.21333333 | AH25: ЗЕРКАЛА-БОР(МШЛ)(%)(#)(В) | AI25: 15 | AJ25: 8.36 | AK25: 14 | AL25: 6.6 | AM25: 1.76 | AN25: 0 | AO25: 0 | AR25: 0.02 | AS25: 0.03 | AT25: 4 | AW25: 8 | AX25: 0 | AY25: 0.3 | BB25: 8 | BE25: 2 | BH25: 14 | BI25: 32 | BJ25: 0 | BL25: 0.41 | BM25: 1 | BN25: 35 | BO25: 57 | BP25: 20 | CH25: 5 | CI25: 8
A26: 898990 | B26: V-3 (ZL-148H) | C26: V-3 (ZL-148H) | D26: V3-148 | E26: Зеркало боковое ЗИЛ,ГАЗ сферическое с обогревом дополнительное 24V 225х170мм БОР | F26: BX | G26: А | I26: 245 | J26: 81 | K26: 0 | L26: 0 | M26: 0 | N26: 60.94 | O26: 39 | P26: 200 | Q26: 1.106666667 | R26: 2.128205128 | S26: 74 | T26: 15 | U26: 70 | V26: 70 | W26: 0 | X26: 0 | Y26: 0 | Z26: 3675 | AB26: 7 / 5 / 4 | AC26: -- / 6 / -- | AD26: -- / -- / -- | AE26: 73.77777778 | AF26: 83 | AH26: ЗЕРКАЛА-БОР(МШЛ)(%)(#)(В) | AI26: 66.66666667 | AJ26: 39 | AK26: 13 | AL26: 56.54 | AM26: 4.4 | AN26: 0 | AO26: 0 | AR26: 0.2 | AS26: 0.23 | AT26: 7 | AW26: 6 | AX26: 0 | AY26: 2.57 | BB26: 74 | BE26: 4 | BH26: 81 | BI26: 38 | BJ26: 0 | BL26: 3 | BN26: 217 | BO26: 68 | BP26: 39 | CB26: 4 | CH26: 0 | CI26: 17
A27: 640291 | B27: V4(ZL-133H) пласт.корпус | C27: АТ-3133/Н | D27: V4-133 | E27: Зеркало боковое ЗИЛ,ГАЗ основное сферическое с подогревом 24V300х165мм БОР | F27: CY | G27: А | I27: 294 | J27: 20 | K27: 0 | L27: 0 | M27: 0 | N27: 0.22 | O27: 3 | P27: 3 | Q27: 6.333333333 | R27: 90.57575758 | S27: 16 | U27: 16 | V27: 15 | W27: 0 | X27: 0 | Y27: 0 | Z27: 0 | AB27: 4 / -- / 2 | AC27: 11 / -- / -- | AD27: -- / -- / -- | AE27: 19 | AF27: 19.92666667 | AH27: ЗЕРКАЛА-БОР(МШЛ)(%)(#)(В) | AI27: 3 | AJ27: 0.22 | AK27: 4 | AL27: 0.22 | AM27: 0 | AN27: 0 | AO27: 0 | AR27: 0 | AS27: 0 | AT27: 4 | AU27: 11 | AX27: 0 | AY27: 0.01 | BB27: 16 | BE27: 2 | BH27: 33 | BI27: 28 | BJ27: 2 | BL27: 0.01 | BN27: 3 | BO27: 24 | BP27: 3 | BX27: 2 | CH27: 0 | CI27: 0
A28: 021423 | B28: V4(ZL-133) пласт.корпус | C28: АТ-33133 | D28: V4-133 | E28: Зеркало боковое ЗИЛ,ГАЗ основное сферическое без подогрева 300х165мм БОР | F28: CX | G28: А | I28: 249 | J28: 26 | K28: 0 | L28: 0 | M28: 0 | N28: 11.88 | O28: 13 | P28: 42 | Q28: 2.738095238 | R28: 3.286195286 | S28: 16 | T28: 17 | U28: 30 | V28: 30 | W28: 0 | X28: 0 | Y28: 0 | Z28: 4233 | AB28: 8 / 4 / 4 | AC28: -- / 2 / -- | AD28: -- / -- / -- | AE28: 38.33333333 | AF28: 39.04 | AH28: ЗЕРКАЛА-БОР(МШЛ)(%)(#)(В) | AI28: 14 | AJ28: 11.88 | AK28: 20 | AL28: 8.14 | AM28: 3.74 | AN28: 0 | AO28: 0 | AR28: 0.16 | AS28: 0.07 | AT28: 8 | AW28: 10 | AX28: 0 | AY28: 0.37 | BB28: 16 | BE28: 4 | BH28: 28 | BI28: 58 | BJ28: 2 | BL28: 0.61 | BN28: 44 | BO28: 66 | BP28: 14 | BX28: 2 | CH28: 1 | CI28: 2
A29: 173224 | B29: V6(ZL-018H) | C29: 024101 | D29: V6-018 | E29: Зеркало боковое КАМАЗ,МАЗ,УРАЛ основное сферическое с подогревом 24V 350х164мм БОР | F29: BX | G29: А | I29: 322 | J29: 40 | K29: 0 | L29: 0 | M29: 4 | N29: 27.5 | O29: 38 | P29: 84 | Q29: 1.666666667 | R29: 2.43030303 | S29: 29 | T29: 40 | U29: 60 | V29: 60 | W29: 0 | X29: 0 | Y29: 0 | Z29: 12880 | AB29: 5 / 1 / 2 | AC29: 8 / 15 / -- | AD29: -- / -- / -- | AE29: 63.33333333 | AF29: 66.83333333 | AH29: ЗЕРКАЛА-БОР(МШЛ)(%)(#)(В) | AI29: 38 | AJ29: 27.5 | AK29: 21 | AL29: 26.62 | AM29: 0.88 | AN29: 0 | AO29: 0 | AR29: 0.02 | AS29: 0.67 | AT29: 5 | AU29: 8 | AW29: 10 | AX29: 0 | AY29: 1.21 | BB29: 33 | BE29: 2 | BH29: 48 | BI29: 30 | BJ29: 0 | BL29: 1.92 | BM29: 4 | BN29: 111 | BO29: 53 | BP29: 42 | BW29: 4 | CB29: 2 | CH29: 4 | CI29: 27
A30: 021424 | B30: V6(ZL-018) | C30: АТ-3018 | D30: V6-018 | E30: Зеркало боковое КАМАЗ,МАЗ,УРАЛ основное сферическое без подогрева 350х164мм БОР | F30: BX | G30: А | I30: 254 | J30: 159 | K30: 0 | L30: 0 | M30: 25 | N30: 150.04 | O30: 157 | P30: 343 | Q30: 1.666666667 | R30: 2.413022352 | S30: 46 | T30: 180 | U30: 201 | V30: 200 | W30: 0 | X30: 0 | Y30: 0 | Z30: 45720 | AB30: 41 / 28 / 10 | AC30: -- / 22 / -- | AD30: 41 / 28 / 10 | AE30: 261.6666667 | AF30: 275.8888889 | AH30: ЗЕРКАЛА-БОР(МШЛ)(%)(#)(В) | AI30: 157 | AJ30: 114.3333333 | AK30: 123 | AL30: 76.12 | AM30: 73.92 | AN30: 0 | AO30: 0 | AR30: 1.26 | AS30: 0.97 | AT30: 41 | AW30: 10 | AX30: 1.27 | AY30: 3.46 | AZ30: 10 | BA30: 41 | BB30: 56 | BE30: 10 | BH30: 168 | BI30: 40 | BJ30: 9 | BL30: 7.79 | BM30: 25 | BN30: 369 | BO30: 112 | BP30: 165 | BW30: 10 | BX30: 3 | BY30: 4 | BZ30: 2 | CB30: 3 | CC30: 8 | CH30: 8 | CI30: 26
A31: 684005 | B31: V6(ZL-018H) | C31: АТ-3018/Н | D31: V6-018 | E31: Зеркало боковое КАМАЗ,МАЗ,УРАЛ,ГАЗон Next основное сферическое с подогревом 24V 365х180мм БОР | F31: AX | G31: А | I31: 292 | J31: 216 | K31: 0 | L31: 0 | M31: 6 | N31: 159.06 | O31: 172 | P31: 459 | Q31: 1.178294574 | R31: 1.366013072 | S31: 127 | T31: 50 | U31: 146 | V31: 140 | W31: 0 | X31: 0 | Y31: 0 | Z31: 14600 | AB31: 31 / 21 / 16 | AC31: -- / 22 / -- | AD31: 23 / 13 / 8 | AE31: 202.6666667 | AF31: 209 | AH31: ЗЕРКАЛА-БОР(МШЛ)(%)(#)(В) | AI31: 172 | AJ31: 153 | AK31: 99 | AL31: 91.52 | AM31: 67.54 | AN31: 0 | AO31: 0 | AR31: 0.93 | AS31: 0.99 | AT31: 31 | AW31: 10 | AX31: 0.57 | AY31: 4.16 | AZ31: 8 | BA31: 23 | BB31: 133 | BE31: 16 | BH31: 224 | BI31: 30 | BJ31: 8 | BL31: 8.22 | BM31: 6 | BN31: 488 | BO31: 93 | BP31: 181 | BW31: 6 | BX31: 8 | CB31: 2 | CH31: 9 | CI31: 29
A32: 955152 | B32: V-8 (405х182мм) | C32: V-8 (405х182мм) | D32: V8-019 | E32: Зеркало боковое ЗИЛ-5301,ПАЗ основное сферическое без подогрева 425х200мм БОР | F32: BY | G32: А | I32: 338 | J32: 9 | K32: 0 | L32: 0 | M32: 5 | N32: 12.98 | O32: 33 | P32: 61 | Q32: 0.9090909091 | R32: 2.311248074 | S32: 0 | T32: 30 | U32: 30 | V32: 25 | W32: 0 | X32: 0 | Y32: 0 | Z32: 10140 | AB32: 4 / 6 / 6 | AC32: 3 / 2 / -- | AD32: -- / -- / -- | AE32: 30 | AF32: 30 | AH32: ЗЕРКАЛА-БОР(МШЛ)(%)(#)(В) | AI32: 33 | AJ32: 12.98 | AK32: 13 | AL32: 7.92 | AM32: 5.06 | AN32: 0 | AO32: 0 | AR32: 0.23 | AS32: 0.09 | AT32: 4 | AU32: 3 | AW32: 4 | AX32: 0 | AY32: 0.36 | BB32: 5 | BE32: 6 | BH32: 12 | BI32: 27 | BJ32: 0 | BL32: 0.68 | BM32: 5 | BN32: 67 | BO32: 17 | BP32: 39 | BW32: 5 | CH32: 6 | CI32: 6
A33: 955153 | B33: V-8 (405х182мм) с/о | C33: V-8 (405х182мм) с/о | D33: V8-019 | E33: Зеркало боковое ЗИЛ-5301,ПАЗ основное сферическое с подогревом 24V 405х182мм БОР | F33: CY | G33: А | I33: 385 | J33: 6 | K33: 0 | L33: 0 | M33: 0 | N33: 4.4 | O33: 6 | P33: 17 | Q33: 2.333333333 | R33: 3.303030303 | S33: 3 | T33: 10 | U33: 12 | V33: 12 | W33: 0 | X33: 0 | Y33: 0 | Z33: 3850 | AB33: -- / 1 / 2 | AC33: 3 / 1 / -- | AD33: -- / -- / -- | AE33: 14 | AF33: 14.53333333 | AH33: ЗЕРКАЛА-БОР(МШЛ)(%)(#)(В) | AI33: 6 | AJ33: 4.4 | AK33: 3 | AL33: 3.96 | AM33: 0.44 | AN33: 0 | AO33: 0 | AR33: 0.02 | AS33: 0.02 | AU33: 3 | AX33: 0 | AY33: 0.18 | BB33: 3 | BE33: 2 | BH33: 9 | BI33: 29 | BJ33: 0 | BL33: 0.22 | BN33: 20 | BO33: 21 | BP33: 7 | CB33: 2 | CH33: 1 | CI33: 3
A34: 540816 | B34: 170х95 | C34: 170х95 | D34: не треб серт | E34: Элемент обогрева зеркала 12V 170х95мм с клеммой БОР | F34: CY | G34: А | I34: 88 | J34: 61 | K34: 0 | L34: 0 | M34: 0 | N34: 19.36 | O34: 2 | P34: 71 | Q34: 2.244131455 | R34: 30.16666667 | S34: 57 | U34: 51 | V34: 30 | W34: 0 | X34: 7 | Y34: 1 | Z34: 0 | AB34: 4 / 1 / 6 | AC34: 9 / 6 / -- | AD34: -- / -- / -- | AE34: 53.11111111 | AF34: 60.33333333 | AH34: ЗЕРКАЛА-БОР(МШЛ)(%)(#)(В) | AI34: 23.66666667 | AJ34: 2 | AK34: 4 | AL34: 18.92 | AM34: 0.44 | AN34: 0 | AO34: 0 | AR34: 0.03 | AS34: 0.24 | AT34: 4 | AU34: 9 | AX34: 0 | AY34: 0.86 | BB34: 57 | BE34: 6 | BH34: 70 | BI34: 69 | BJ34: 0 | BL34: 1.12 | BN34: 89 | BO34: 73 | BP34: 10 | CB34: 2 | CH34: 8 | CI34: 18
A35: 540818 | B35: 182х120Л | C35: 182х120Л | D35: не треб серт | E35: Элемент обогрева зеркала 12V 182х120мм левое с клеммой БОР | F35: CY | G35: А | I35: 95 | J35: 18 | K35: 0 | L35: 0 | M35: 0 | N35: 2.2 | O35: 68 | P35: 74 | Q35: 0.2205882353 | R35: 14.66666667 | S35: 7 | T35: 15 | U35: 21 | V35: 20 | W35: 0 | X35: 0 | Y35: 0 | Z35: 1425 | AB35: 11 / -- / 4 | AC35: 59 / 2 / -- | AD35: -- / -- / -- | AE35: 15 | AF35: 32.26666667 | AH35: ЗЕРКАЛА-БОР(МШЛ)(%)(#)(В) | AI35: 68 | AJ35: 2.2 | AK35: 11 | AL35: 1.98 | AM35: 0.22 | AN35: 0 | AO35: 0 | AR35: 0 | AS35: 0.09 | AT35: 11 | AU35: 59 | AX35: 0 | AY35: 0.09 | BB35: 7 | BE35: 4 | BH35: 77 | BI35: 74 | BJ35: 0 | BL35: 0.19 | BN35: 79 | BO35: 13 | BP35: 70 | CB35: 2 | CH35: 2 | CI35: 5
A36: 540819 | B36: 182х120П | C36: 182х120П | D36: не треб серт | E36: Элемент обогрева зеркала 12V 182х120мм правое с клеммой БОР | F36: CY | G36: А | I36: 95 | J36: =MAX(0,Опт__Общий_остаток_с_транзитами-Остаток_регионы-Основное_Томилино-Приемка_Томилино-Стикеровальня_Томилино) -> 63 | K36: =Заказанный_товар_Люберцы+Заказанный_товар_Машково+Заказанный_товар_Машково3 -> 0 | L36: 0 | M36: =В_резерве_общий__опт-В_резерве_Томилино -> 0 | N36: =Суммарная_уходимость_опт*22-Томилино_Уходимость*22 -> 27.5 | O36: =Опт__П2_Итого_продажа-Томилино_П2_Итого_продажа -> 0 | P36: =Опт__П1_Итого_продажа-Томилино_П1_Итого_продажа -> 68 | Q36: =IFERROR(РОСТ_МАКС/Максимальные_продажи,"") -> 1.957575758 | R36: =IFERROR(РОСТ_МИН/Минимальные_продажи,"") ->  | S36: =MAX(0,Основное_Машково+Основное_Машково3+Приемка_Машково+Приемка_Машково3+Стикеровальня_Машково+Стикеровальня_Машково___3-В_резерве_Машково) -> 59 | U36: =ROUND(IF(ОСТ_ДОНОР+(Заказанный_товар_Машково+Заказанный_товар_Машково3)>(Уход_донор/30*ПР1+Прогноз_перемещения_с_донора),MAX(ОСТ_ДОНОР+(Заказанный_товар_Машково+Заказанный_товар_Машково3+Предварительная_заявка_Машково+Предварительная_заявка_Машково3)-(Уход_донор/30*ПЛ1+Прогноз_перемещения_с_донора),0),MAX((Предварительная_заявка_Машково+Предварительная_заявка_Машково3)-(Уход_донор/30*(ПЛ1-ПР1)+Прогноз_перемещения_с_донора),0)),0)+ПЛАН -> 50 | V36: 30 | W36: =IF(РОСТ_ДОНОР-МИН_ДОНОР>0,0,РОСТ_ДОНОР-МИН_ДОНОР) -> 0 | X36: 6 | Y36: 1 | Z36: =IF(ЦЗ*ПЛАН=0,0,ЦЗ*ПЛАН) -> 0 | AB36: =IF(Основное_Люберцы,Основное_Люберцы,"--")&" / "&IF(Люберцы_Уходимость,CEILING(Люберцы_Уходимость*22,1),"--")&" / "&IF(Минимум_Люберцы,Минимум_Люберцы,"--") -> 4 / 2 / 4 | AC36: =IF(Основное_Томилино,Основное_Томилино,"--")&" / "&IF(Томилино_Уходимость,CEILING(Томилино_Уходимость*22,1),"--")&" / "&IF(Минимум_Томилино,Минимум_Томилино,"--") -> 15 / 16 / -- | AD36: =IF(Основное_Варшавка,Основное_Варшавка,"--")&" / "&IF(Варшавка_Уходимость,CEILING(Варшавка_Уходимость*22,1),"--")&" / "&IF(Минимум_Варшавка,Минимум_Варшавка,"--") -> -- / -- / -- | AE36: =IF(ОСТ_ОБЩ+В_ПУТИ-РЕЗЕРВ_ОПТ>Максимальные_продажи/30*ПР1,MAX(ОСТ_ОБЩ+В_ПУТИ-РЕЗЕРВ_ОПТ+ПРЕДВ_ЗАЯВКА-Максимальные_продажи/30*ПЛ1,0),MAX(ПРЕДВ_ЗАЯВКА-Максимальные_продажи/30*(ПЛ1-ПР1),0))+ПЛАН -> 53.83333333 | AF36: =IF(ОСТ_ОБЩ+В_ПУТИ-РЕЗЕРВ_ОПТ>Минимальные_продажи/30*ПР1,MAX(ОСТ_ОБЩ+В_ПУТИ-РЕЗЕРВ_ОПТ+ПРЕДВ_ЗАЯВКА-Минимальные_продажи/30*ПЛ1,0),MAX(ПРЕДВ_ЗАЯВКА-Минимальные_продажи/30*(ПЛ1-ПР1),0))+ПЛАН -> 63 | AH36: ЗЕРКАЛА-БОР(МШЛ)(%)(#)(В) | AI36: =MAX(--УХОД_ОБЩ,--П2_ОБЩ,--П1_ОБЩ/3) -> 27.5 | AJ36: =MIN(--УХОД_ОБЩ,--П2_ОБЩ,--П1_ОБЩ/3) -> 0 | AK36: =ОСТ_ОБЩ-ОСТ_ДОНОР+Заказанный_товар_Люберцы+Предварительная_заявка_Люберцы+Заказанный_товар_Томилино+Предварительная_заявка_Томилино -> 4 | AL36: =Машково_Уходимость*22 -> 25.52 | AM36: =УХОД_ОБЩ-Машково_Уходимость*22 -> 1.98 | AN36: =IF(Уход_без_донора/30*ПЛ1-(Ост_без_донора-Уход_без_донора/30*ПЛ1)>0,Уход_без_донора/30*ПЛ1-(Ост_без_донора-Уход_без_донора/30*ПЛ1),0) -> 0 | AO36: =IF(Ост_без_донора-Уход_без_донора/30*ПЛ1>=Уход_без_донора,0,Уход_без_донора-Ост_без_донора+Уход_без_донора/30*ПЛ1) -> 0 | AR36: 0.09 | AS36: 0.72 | AT36: 4 | AU36: 15 | AX36: 0 | AY36: 1.16 | BB36: 59 | BE36: 4 | BH36: 78 | BI36: 37 | BJ36: =Основное_Екатеринбург+Основное_Нижний_Новый+Основное_Новосибирск+Основное_Уфа2+Основное_Ижевск -> 0 | BL36: 1.97 | BN36: 89 | BO36: 33 | BP36: 0 | CB36: 2 | CH36: 0 | CI36: 21
A37: 267350 | B37: 19.8201020 | C37: 19.8201020 | D37: 5320-8201020 | E37: Зеркало боковое УАЗ-469,3151 основное сферическое без обогрева правое 220х145мм БОР | F37: CY | G37: А | I37: 389 | J37: 11 | K37: 0 | L37: 0 | M37: 0 | N37: 2.64 | O37: 4 | P37: 9 | Q37: 2.916666667 | R37: 4.590909091 | S37: 7 | T37: 2 | U37: 8 | V37: 8 | W37: 0 | X37: 2 | Y37: 1 | Z37: 778 | AB37: 4 / 1 / 2 | AC37: -- / 1 / -- | AD37: -- / -- / -- | AE37: 11.66666667 | AF37: 12.12 | AH37: ЗЕРКАЛА-БОР(МШЛ)(%)(#)(В) | AI37: 4 | AJ37: 2.64 | AK37: 4 | AL37: 1.98 | AM37: 0.66 | AN37: 0 | AO37: 0 | AR37: 0.02 | AS37: 0.04 | AT37: 4 | AX37: 0 | AY37: 0.09 | BB37: 7 | BE37: 2 | BH37: 11 | BI37: 12 | BJ37: 0 | BL37: 0.16 | BN37: 13 | BO37: 5 | BP37: 7 | CB37: 1 | CH37: 3 | CI37: 4
A38: 267349 | B38: 19.8201021 | C38: 19.8201021 | D38: 5320-8201020 | E38: Зеркало боковое УАЗ-469,3151 основное сферическое без обогрева левое 220х145мм БОР | F38: CY | G38: А | I38: 389 | J38: 8 | K38: 0 | L38: 0 | M38: 0 | N38: 1.32 | O38: 4 | P38: 9 | Q38: 2.916666667 | R38: 9.515151515 | S38: 4 | T38: 5 | U38: 8 | V38: 8 | W38: 0 | X38: 0 | Y38: 0 | Z38: 1945 | AB38: 4 / -- / 2 | AC38: 1 / 2 / -- | AD38: -- / -- / -- | AE38: 11.66666667 | AF38: 12.56 | AH38: ЗЕРКАЛА-БОР(МШЛ)(%)(#)(В) | AI38: 4 | AJ38: 1.32 | AK38: 4 | AL38: 1.54 | AM38: -0.22 | AN38: 0 | AO38: 0 | AR38: 0 | AS38: 0.07 | AT38: 4 | AU38: 1 | AX38: 0 | AY38: 0.07 | BB38: 4 | BE38: 2 | BH38: 9 | BI38: 20 | BJ38: 0 | BL38: 0.13 | BN38: 12 | BO38: 8 | BP38: 6 | CH38: 2 | CI38: 3
A39: 898993 | B39: 207.8201020 | C39: 207.8201020 | D39: П-204 | E39: Зеркало боковое МТЗ,ВМТЗ,ЧТЗ основное сферическое 300х200мм БОР | F39: CY | G39: А | I39: 664 | J39: 9 | K39: 0 | L39: 0 | M39: 0 | N39: 7.92 | O39: 8 | P39: 17 | Q39: 1.791666667 | R39: 2.666666667 | S39: 7 | T39: 8 | U39: 13 | V39: 12 | W39: 0 | X39: 0 | Y39: 0 | Z39: 5312 | AB39: 2 / 1 / 2 | AC39: 2 / 1 / -- | AD39: -- / -- / -- | AE39: 14.33333333 | AF39: 15.11111111 | AH39: ЗЕРКАЛА-БОР(МШЛ)(%)(#)(В) | AI39: 8 | AJ39: 5.666666667 | AK39: 2 | AL39: 6.82 | AM39: 1.1 | AN39: 0 | AO39: 0 | AR39: 0.04 | AS39: 0.04 | AT39: 2 | AU39: 2 | AX39: 0 | AY39: 0.31 | BB39: 7 | BE39: 2 | BH39: 11 | BI39: 15 | BJ39: 0 | BL39: 0.4 | BN39: 20 | BO39: 4 | BP39: 9 | CB39: 2 | CH39: 1 | CI39: 3
A40: 898987 | B40: 3302-8201020-30 | C40: 3302-8201020-30 | D40: 3302-9201416 | E40: Зеркало боковое ГАЗ-3302 Бизнес правое с электроприводом и подогревом 12V 260x150 БОР | F40: CZ | G40: В | I40: 5161 | J40: 1 | K40: 0 | L40: 0 | M40: 0 | N40: 0.44 | O40: 2 | P40: 2 | Q40: 1.166666667 | R40: 6.484848485 | S40: 0 | T40: 2 | U40: 2 | V40: 2 | W40: 0 | X40: 42 | Y40: 4 | Z40: 10322 | AB40: 1 / 1 / 1 | AC40: -- / -- / -- | AD40: -- / -- / -- | AE40: 2.333333333 | AF40: 2.853333333 | AH40: ЗЕРКАЛА-БОР(МШЛ)(%)(#)(В) | AI40: 2 | AJ40: 0.44 | AK40: 1 | AL40: 0 | AM40: 0.44 | AN40: 0 | AO40: 0 | AR40: 0.02 | AS40: 0 | AT40: 1 | AX40: 0 | AY40: 0 | BE40: 1 | BH40: 1 | BI40: 7 | BJ40: 0 | BL40: 0.02 | BN40: 2 | BO40: 4 | BP40: 2 | CB40: 1 | CH40: 0 | CI40: 0
A41: 898986 | B41: 3302-8201021-30 | C41: 3302-8201021-30 | D41: 3302-9201417 | E41: Зеркало боковое ГАЗ-3302 Бизнес левое с электроприводом и подогревом 12V 260x150 БОР | F41: CZ | G41: А | I41: 5161 | J41: 4 | K41: 0 | L41: 0 | M41: 0 | N41: 0.22 | O41: 0 | P41: 3 | Q41: 3.666666667 | S41: 3 | U41: 3 | V41: 2 | W41: 0 | X41: 0 | Y41: 0 | Z41: 0 | AB41: 1 / -- / 1 | AC41: 1 / 1 / -- | AD41: -- / -- / -- | AE41: 3.666666667 | AF41: 4 | AH41: ЗЕРКАЛА-БОР(МШЛ)(%)(#)(В) | AI41: 1 | AJ41: 0 | AK41: 1 | AL41: 0.22 | AM41: 0 | AN41: 0 | AO41: 0 | AR41: 0 | AS41: 0.02 | AT41: 1 | AU41: 1 | AX41: 0 | AY41: 0.01 | BB41: 3 | BE41: 1 | BH41: 5 | BI41: 8 | BJ41: 0 | BL41: 0.03 | BN41: 5 | BO41: 3 | BP41: 0 | CH41: 0 | CI41: 2
A42: 802025 | B42: 603 металл.корпус | C42: 603 металл.корпус | E42: Зеркало боковое КАМАЗ,МАЗ,КРАЗ,УРАЛ широкоугольное сферическое (дополнит.) d=154мм БОР | F42: CZ | G42: П | I42: 207 | J42: 0 | K42: 0 | L42: 0 | M42: 0 | N42: 0 | O42: 0 | P42: 0 | S42: 0 | U42: 0 | V42: 0 | W42: 0 | Z42: 0 | AB42: -- / -- / -- | AC42: -- / -- / -- | AD42: -- / -- / -- | AE42: 0 | AF42: 0 | AH42: ЗЕРКАЛА-БОР(МШЛ)(%)(#)(В) | AI42: 0 | AJ42: 0 | AK42: 0 | AL42: 0 | AM42: 0 | AN42: 0 | AO42: 0 | AR42: 0 | AS42: 0 | AX42: 0 | AY42: 0 | BJ42: 0 | BL42: 0 | BN42: 0 | BO42: 0 | BP42: 0 | CH42: 0 | CI42: 0
A43: 898997 | B43: 3302-8201218-10 | C43: 3302-8201218-10 | E43: Элемент зеркальный ГАЗель Бизнес нижний (улыбка) БОР | F43: CX | G43: А | I43: 62 | J43: 65 | K43: 0 | M43: 0 | N43: 67.1 | O43: 34 | P43: 183 | Q43: 1.142076503 | R43: 2.578431373 | S43: 56 | T43: 34 | U43: 70 | V43: 70 | W43: 0 | X43: 0 | Y43: 0 | Z43: 2108 | AB43: 5 / 1 / 6 | AC43: -- / 15 / -- | AD43: 4 / 1 / 4 | AE43: 76.63333333 | AF43: 87.66666667 | AH43: ЗЕРКАЛА-БОР(МШЛ)(%)(#)(В) | AI43: 67.1 | AJ43: 34 | AK43: 17 | AL43: 65.78 | AM43: 1.32 | AN43: 0 | AO43: 0 | AR43: 0.03 | AS43: 0.66 | AT43: 5 | AW43: 8 | AX43: 0.03 | AY43: 2.99 | AZ43: 4 | BA43: 4 | BB43: 56 | BE43: 6 | BH43: 65 | BI43: 28 | BJ43: 0 | BL43: 3.71 | BN43: 203 | BO43: 43 | BP43: 37 | BQ43: 2 | CH43: 3 | CI43: 20
A44: 898996 | B44: 3302-8201228 | C44: 3302-8201228 | D44: 3302-9201417 | E44: Элемент зеркальный ГАЗель Бизнес верхний в рамке с обогревом 12V 205х165 БОР | F44: CX | G44: А | I44: 267 | J44: 27 | K44: 0 | M44: 0 | N44: 14.3 | O44: 14 | P44: 37 | Q44: 1.974358974 | R44: 2.342342342 | S44: 21 | T44: 6 | U44: 24 | V44: 24 | W44: 0 | X44: 0 | Y44: 0 | Z44: 1602 | AB44: 6 / 4 / 2 | AC44: -- / 3 / -- | AD44: -- / -- / -- | AE44: 28.23333333 | AF44: 28.88888889 | AH44: ЗЕРКАЛА-БОР(МШЛ)(%)(#)(В) | AI44: 14.3 | AJ44: 12.33333333 | AK44: 14 | AL44: 10.34 | AM44: 3.96 | AN44: 0 | AO44: 0 | AR44: 0.16 | AS44: 0.12 | AT44: 6 | AW44: 8 | AX44: 0 | AY44: 0.47 | BB44: 21 | BE44: 2 | BH44: 29 | BI44: 39 | BJ44: 2 | BL44: 0.77 | BN44: 41 | BO44: 34 | BP44: 14 | CA44: 2 | CB44: 2 | CH44: 0 | CI44: 4
A45: 898995 | B45: 3302-8201228-10 | C45: 3302-8201228-10 | D45: 3302-9201416 | E45: Элемент зеркальный ГАЗель Бизнес верхний в рамке 205х165 БОР | F45: CX | G45: А | I45: 125 | J45: 43 | K45: 0 | M45: 0 | N45: 25.96 | O45: 16 | P45: 82 | Q45: 1.75203252 | R45: 3.229166667 | S45: 35 | T45: 14 | U45: 40 | V45: 40 | W45: 0 | X45: 4 | Y45: 1 | Z45: 1750 | AB45: 8 / 1 / -- | AC45: -- / 19 / -- | AD45: -- / -- / -- | AE45: 47.88888889 | AF45: 51.66666667 | AH45: ЗЕРКАЛА-БОР(МШЛ)(%)(#)(В) | AI45: 27.33333333 | AJ45: 16 | AK45: 8 | AL45: 25.96 | AM45: 0 | AN45: 0 | AO45: 0 | AR45: 0.01 | AS45: 0.86 | AT45: 8 | AX45: 0 | AY45: 1.18 | BB45: 35 | BH45: 47 | BI45: 40 | BJ45: 4 | BL45: 2.04 | BN45: 106 | BO45: 58 | BP45: 26 | CA45: 4 | CB45: 3 | CH45: 10 | CI45: 24
A46: 173220 | B46: V8(ZL-019) пласт.корпус | C46: AT33137 | E46: Зеркало боковое ЗИЛ-5301,ПАЗ основное сферическое без подогрева 405х182мм БОР | F46: CZ | G46: П | I46: 407 | J46: 0 | K46: 0 | L46: =Предварительная_заявка_Машково+Предварительная_заявка_Люберцы+Предварительная_заявка_Машково3 -> 0 | M46: 0 | N46: 0 | O46: 0 | P46: 0 | S46: 0 | U46: 0 | V46: 0 | W46: 0 | Z46: 0 | AB46: -- / -- / -- | AC46: -- / -- / -- | AD46: -- / -- / -- | AE46: 0 | AF46: 0 | AG46: 1 | AH46: ЗЕРКАЛА-БОР(МШЛ)(%)(#)(В) | AI46: 0 | AJ46: 0 | AK46: 0 | AL46: 0 | AM46: 0 | AN46: 0 | AO46: 0 | AR46: 0 | AS46: 0 | AX46: 0 | AY46: 0 | BJ46: 0 | BL46: 0 | BN46: 0 | BO46: 0 | BP46: 0 | CH46: 0 | CI46: 0
A47: 173221 | B47: АТ-3137А/Н(ZL-137H) | C47: AT33138 | E47: Зеркало боковое КАМАЗ,МАЗ основное сферическое с подогревом 24V 443х215мм БОР | F47: CZ | G47: П | I47: 220 | J47: 0 | K47: 0 | L47: =Предварительная_заявка_Машково+Предварительная_заявка_Люберцы+Предварительная_заявка_Машково3 -> 0 | M47: 0 | N47: 0 | O47: 0 | P47: 0 | S47: 0 | U47: 0 | V47: 0 | W47: 0 | Z47: 0 | AB47: -- / -- / -- | AC47: -- / -- / -- | AD47: -- / -- / -- | AE47: 0 | AF47: 0 | AH47: ЗЕРКАЛА-БОР(МШЛ)(%)(#)(В) | AI47: 0 | AJ47: 0 | AK47: 0 | AL47: 0 | AM47: 0 | AN47: 0 | AO47: 0 | AR47: 0 | AS47: 0 | AX47: 0 | AY47: 0 | BJ47: 0 | BL47: 0 | BN47: 0 | BO47: 0 | BP47: 0 | CH47: 0 | CI47: 0
A48: 955164 | B48: D-145 | C48: D-145 | E48: Зеркало дополнительное сферическое круглое d=18мм БОР | G48: + | I48: 170 | J48: 0 | K48: 0 | L48: =Предварительная_заявка_Машково+Предварительная_заявка_Люберцы+Предварительная_заявка_Машково3 -> 0 | M48: 0 | N48: 0 | O48: 0 | P48: 0 | S48: 0 | U48: 0 | V48: 0 | W48: 0 | Z48: 0 | AB48: -- / -- / -- | AC48: -- / -- / -- | AD48: -- / -- / -- | AE48: 0 | AF48: 0 | AH48: ЗЕРКАЛА-БОР(МШЛ)(%)(#)(В) | AI48: 0 | AJ48: 0 | AK48: 0 | AL48: 0 | AM48: 0 | AN48: 0 | AO48: 0 | AR48: 0 | AS48: 0 | AX48: 0 | AY48: 0 | BJ48: 0 | BL48: 0 | BN48: 0 | BO48: 0 | BP48: 0 | CH48: 0 | CI48: 0
A49: 955165 | B49: D-145 в сб. | C49: D-145 в сб. | E49: Зеркало дополнительное сферическое круглое в сборе d=18мм БОР | G49: + | I49: 170 | J49: 0 | K49: 0 | L49: =Предварительная_заявка_Машково+Предварительная_заявка_Люберцы+Предварительная_заявка_Машково3 -> 0 | M49: 0 | N49: 0 | O49: 0 | P49: 0 | S49: 0 | U49: 0 | V49: 0 | W49: 0 | Z49: 0 | AB49: -- / -- / -- | AC49: -- / -- / -- | AD49: -- / -- / -- | AE49: 0 | AF49: 0 | AH49: ЗЕРКАЛА-БОР(МШЛ)(%)(#)(В) | AI49: 0 | AJ49: 0 | AK49: 0 | AL49: 0 | AM49: 0 | AN49: 0 | AO49: 0 | AR49: 0 | AS49: 0 | AX49: 0 | AY49: 0 | BJ49: 0 | BL49: 0 | BN49: 0 | BO49: 0 | BP49: 0 | CH49: 0 | CI49: 0
A50: 955166 | B50: D-220 | C50: D-220 | E50: Зеркало дополнительное сферическое круглое салонное d=18мм БОР | F50: CZ | G50: + | I50: 188 | J50: 0 | K50: 0 | L50: =Предварительная_заявка_Машково+Предварительная_заявка_Люберцы+Предварительная_заявка_Машково3 -> 0 | M50: 0 | N50: 0 | O50: 0 | P50: 0 | S50: 0 | U50: 0 | V50: 0 | W50: 0 | Z50: 0 | AB50: -- / -- / -- | AC50: -- / -- / -- | AD50: -- / -- / -- | AE50: 0 | AF50: 0 | AH50: ЗЕРКАЛА-БОР(МШЛ)(%)(#)(В) | AI50: 0 | AJ50: 0 | AK50: 0 | AL50: 0 | AM50: 0 | AN50: 0 | AO50: 0 | AR50: 0 | AS50: 0 | AX50: 0 | AY50: 0 | BJ50: 0 | BL50: 0 | BN50: 0 | BO50: 0 | BP50: 0 | CH50: 0 | CI50: 0
A51: 893925 | B51: 3302-82013 К | C51: 3302-82013 К | E51: Проставка ГАЗ-3302 зеркала (удлинитель обзора) комплект БОР | F51: CX | G51: А | I51: 550 | J51: 6 | K51: 0 | M51: 0 | N51: 11.22 | O51: 18 | P51: 30 | Q51: 1.111111111 | R51: 2.266666667 | S51: 0 | T51: 20 | U51: 21 | V51: 20 | W51: 0 | X51: 3 | Y51: 1 | Z51: 11000 | AB51: 1 / 2 / 1 | AC51: -- / 4 / -- | AD51: 4 / 2 / 1 | AE51: 20 | AF51: 22.66666667 | AH51: ЗЕРКАЛА-БОР(МШЛ)(%)(#)(В) | AI51: 18 | AJ51: 10 | AK51: 10 | AL51: 7.04 | AM51: 4.18 | AN51: 0 | AO51: 0 | AR51: 0.09 | AS51: 0.14 | AT51: 1 | AW51: 4 | AX51: 0.08 | AY51: 0.32 | AZ51: 1 | BA51: 4 | BE51: 1 | BH51: 8 | BI51: 21 | BJ51: 2 | BL51: 0.65 | BN51: 31 | BO51: 40 | BP51: 19 | BQ51: 3 | BX51: 2 | CB51: 1 | CH51: 1 | CI51: 1
A52: 955159 | B52: V-2 (170х170мм) | C52: V-2 (170х170) | E52: Элемент обогрева зеркала 24V 170х170мм БОР | G52: + | I52: 60 | J52: 0 | K52: 0 | L52: =Предварительная_заявка_Машково+Предварительная_заявка_Люберцы+Предварительная_заявка_Машково3 -> 0 | M52: 0 | N52: 0 | O52: 0 | P52: 0 | S52: 0 | U52: 0 | V52: 0 | W52: 0 | Z52: 0 | AB52: -- / -- / -- | AC52: -- / -- / -- | AD52: -- / -- / -- | AE52: 0 | AF52: 0 | AH52: ЗЕРКАЛА-БОР(МШЛ)(%)(#)(В) | AI52: 0 | AJ52: 0 | AK52: 0 | AL52: 0 | AM52: 0 | AN52: 0 | AO52: 0 | AR52: 0 | AS52: 0 | AX52: 0 | AY52: 0 | BJ52: 0 | BL52: 0 | BN52: 0 | BO52: 0 | BP52: 0 | CH52: 0 | CI52: 0
A53: 955154 | B53: V-3 (210х160мм) | C53: V-3 (410х160мм) | E53: Зеркало боковое ЗИЛ,ГАЗ сферическое без подогрева дополнительное 24V 210х160мм БОР | G53: + | I53: 157 | J53: 0 | K53: 0 | L53: 0 | M53: 0 | N53: 0 | O53: 0 | P53: 0 | S53: 0 | U53: 0 | V53: 0 | W53: 0 | Z53: 0 | AB53: -- / -- / -- | AC53: -- / -- / -- | AD53: -- / -- / -- | AE53: 0 | AF53: 0 | AH53: ЗЕРКАЛА-БОР(МШЛ)(%)(#)(В) | AI53: 0 | AJ53: 0 | AK53: 0 | AL53: 0 | AM53: 0 | AN53: 0 | AO53: 0 | AR53: 0 | AS53: 0 | AX53: 0 | AY53: 0 | BJ53: 0 | BL53: 0 | BN53: 0 | BO53: 0 | BP53: 0 | CH53: 0 | CI53: 0
A54: 955171 | B54: 452-8201006 | C54: 452-8201006 | D54: 5320-8201020 | E54: Зеркало боковое УАЗ-3741,452 (300х187мм) УЗО с держателем комплект 2шт. БОР | F54: CY | G54: А | I54: 1847 | J54: 7 | K54: 0 | L54: 0 | M54: 0 | N54: 1.76 | O54: 6 | P54: 11 | Q54: 2 | R54: 7.621212121 | S54: 6 | T54: 7 | U54: 12 | V54: 12 | W54: 0 | X54: 0 | Y54: 0 | Z54: 12929 | AB54: 1 / -- / 1 | AC54: -- / 1 / -- | AD54: -- / -- / -- | AE54: 12 | AF54: 13.41333333 | AH54: ЗЕРКАЛА-БОР(МШЛ)(%)(#)(В) | AI54: 6 | AJ54: 1.76 | AK54: 1 | AL54: 1.76 | AM54: 0 | AN54: 0 | AO54: 0 | AR54: 0 | AS54: 0.02 | AT54: 1 | AX54: 0 | AY54: 0.08 | BB54: 6 | BE54: 1 | BH54: 7 | BI54: 10 | BJ54: 0 | BL54: 0.1 | BN54: 14 | BO54: 5 | BP54: 6 | CB54: 2 | CH54: 0 | CI54: 3
A55: 898019 | B55: 46.8201020 | C55: 46.8201020 | D55: 3302-9201416 | E55: Зеркало боковое ГАЗ-3302 Бизнес правое с повторителем поворота БОР | F55: CZ | G55: А | I55: 2870 | J55: 3 | K55: 0 | L55: 0 | M55: 0 | N55: 1.32 | O55: 1 | P55: 2 | Q55: 2.696969697 | R55: 5.666666667 | S55: 3 | T55: 1 | U55: 4 | V55: 4 | W55: 0 | Z55: 2870 | AB55: -- / -- / -- | AC55: -- / 1 / -- | AD55: -- / -- / -- | AE55: 3.56 | AF55: 3.777777778 | AH55: ЗЕРКАЛА-БОР(МШЛ)(%)(#)(В) | AI55: 1.32 | AJ55: 0.6666666667 | AK55: 0 | AL55: 1.32 | AM55: 0 | AN55: 0 | AO55: 0 | AR55: 0 | AS55: 0.01 | AX55: 0 | AY55: 0.06 | BB55: 4 | BH55: 3 | BI55: 7 | BJ55: 0 | BL55: 0.07 | BN55: 2 | BO55: 1 | BP55: 1 | BW55: 1 | CH55: 0 | CI55: 0
A56: 898020 | B56: 46.8201020-20 | C56: 46.8201020-20 | D56: 3302-9201416 | E56: Зеркало боковое ГАЗ-3302 Бизнес правое с подогревом 12V 260x150 БОР | F56: CY | G56: А | I56: 3214 | J56: 7 | K56: 0 | L56: 0 | M56: 0 | N56: 1.76 | O56: 4 | P56: 7 | Q56: 1.416666667 | R56: 3.643939394 | S56: 7 | U56: 6 | V56: 4 | W56: 0 | Z56: 0 | AB56: -- / -- / -- | AC56: -- / 1 / -- | AD56: -- / -- / -- | AE56: 5.666666667 | AF56: 6.413333333 | AH56: ЗЕРКАЛА-БОР(МШЛ)(%)(#)(В) | AI56: 4 | AJ56: 1.76 | AK56: 0 | AL56: 1.76 | AM56: 0 | AN56: 0 | AO56: 0 | AR56: 0 | AS56: 0.02 | AX56: 0 | AY56: 0.08 | BB56: 7 | BH56: 7 | BI56: 13 | BJ56: 0 | BL56: 0.1 | BN56: 8 | BO56: 6 | BP56: 4 | CB56: 1 | CH56: 0 | CI56: 1
A57: 898017 | B57: 46.8201021 | C57: 46.8201021 | D57: 3302-9201417 | E57: Зеркало боковое ГАЗ-3302 Бизнес левое с повторителем поворота БОР | F57: CY | G57: А | I57: 2870 | J57: 2 | K57: 0 | L57: 0 | M57: 0 | N57: 1.76 | O57: 1 | P57: 4 | Q57: 5.348484848 | R57: 9.666666667 | S57: 0 | T57: 8 | U57: 8 | V57: 8 | W57: 0 | X57: 1 | Y57: 1 | Z57: 22960 | AB57: -- / 1 / 1 | AC57: -- / 1 / -- | AD57: 1 / 1 / 1 | AE57: 9.413333333 | AF57: 9.666666667 | AH57: ЗЕРКАЛА-БОР(МШЛ)(%)(#)(В) | AI57: 1.76 | AJ57: 1 | AK57: 3 | AL57: 1.32 | AM57: 0.44 | AN57: 0 | AO57: 0 | AR57: 0.01 | AS57: 0.02 | AW57: 1 | AX57: 0.01 | AY57: 0.06 | AZ57: 1 | BA57: 1 | BE57: 1 | BH57: 2 | BI57: 7 | BJ57: 0 | BL57: 0.1 | BN57: 5 | BO57: 11 | BP57: 2 | CB57: 1 | CH57: 1 | CI57: 1
A58: 955163 | B58: V-4 (300х165мм) | C58: V-4 (300х165мм) | D58: V-4-133 | E58: Зеркало боковое ЗИЛ,ГАЗ основное сферическое с повторителем поворота 300х165мм БОР | F58: CZ | G58: + | I58: 304 | J58: 0 | K58: 0 | L58: 0 | M58: 0 | N58: 0 | O58: 4 | P58: 4 | Q58: 0 | S58: 0 | U58: 0 | V58: 0 | W58: 0 | Z58: 0 | AB58: -- / -- / -- | AC58: -- / -- / -- | AD58: -- / -- / -- | AE58: 0 | AF58: 0 | AH58: ЗЕРКАЛА-БОР(МШЛ)(%)(#)(В) | AI58: 4 | AJ58: 0 | AK58: 2 | AL58: 0 | AM58: 0 | AN58: 0 | AO58: 0 | AR58: 0 | AS58: 0 | AW58: 2 | AX58: 0 | AY58: 0 | BH58: 0 | BI58: 22 | BJ58: 0 | BL58: 0 | BN58: 4 | BO58: 17 | BP58: 4 | CH58: 0 | CI58: 0
A59: 898018 | B59: 46.8201021-20 | C59: 46.8201021-20 | D59: 3302-9201417 | E59: Зеркало боковое ГАЗ-3302 Бизнес левое с подогревом 12V 260x150 БОР | F59: CY | G59: А | I59: 3214 | J59: 7 | K59: 0 | L59: 0 | M59: 0 | N59: 2.42 | O59: 5 | P59: 7 | Q59: 1.466666667 | R59: 3.523809524 | S59: 5 | T59: 2 | U59: 6 | V59: 6 | W59: 0 | X59: 0 | Y59: 0 | Z59: 6428 | AB59: 1 / 1 / 1 | AC59: -- / 1 / -- | AD59: -- / -- / -- | AE59: 7.333333333 | AF59: 8.222222222 | AH59: ЗЕРКАЛА-БОР(МШЛ)(%)(#)(В) | AI59: 5 | AJ59: 2.333333333 | AK59: 3 | AL59: 2.2 | AM59: 0.22 | AN59: 0 | AO59: 0 | AR59: 0.01 | AS59: 0.01 | AT59: 1 | AW59: 1 | AX59: 0 | AY59: 0.1 | BB59: 5 | BE59: 1 | BH59: 7 | BI59: 15 | BJ59: 0 | BL59: 0.12 | BN59: 8 | BO59: 7 | BP59: 5 | CB59: 1 | CH59: 0 | CI59: 1
A60: 955170 | B60: 469-8201005 | C60: 469-8201005 | D60: 5320-8201020 | E60: Зеркало боковое УАЗ-469, 3151 (210х171мм) в сборе со стойкой (длинная) БОР | F60: CY | G60: А | I60: 256 | J60: 11 | K60: 0 | L60: 0 | M60: 0 | N60: 3.74 | O60: 10 | P60: 17 | Q60: 0.9666666667 | R60: 3.142602496 | S60: 7 | T60: 2 | U60: 8 | V60: 8 | W60: 0 | X60: 1 | Y60: 1 | Z60: 512 | AB60: 4 / 2 / 2 | AC60: -- / 1 / -- | AD60: -- / -- / -- | AE60: 9.666666667 | AF60: 11.75333333 | AH60: ЗЕРКАЛА-БОР(МШЛ)(%)(#)(В) | AI60: 10 | AJ60: 3.74 | AK60: 4 | AL60: 2.2 | AM60: 1.54 | AN60: 0 | AO60: 0 | AR60: 0.07 | AS60: 0.03 | AT60: 4 | AX60: 0 | AY60: 0.1 | BB60: 7 | BE60: 2 | BH60: 11 | BI60: 18 | BJ60: 0 | BL60: 0.2 | BN60: 19 | BO60: 10 | BP60: 10 | CB60: 2 | CH60: 0 | CI60: 2
A61: 201676 | B61: 501-8201010 | C61: 501-8201010 | D61: не наша позиция | E61: Кронштейн КАМАЗ,МАЗ,КРАЗ,УРАЛ зеркала 501 БОР | F61: CZ | G61: Я | H61: К | I61: 180 | J61: 0 | K61: 0 | L61: 0 | M61: 0 | N61: 0 | O61: 0 | P61: 0 | S61: 0 | U61: 0 | V61: 0 | W61: 0 | Z61: 0 | AB61: -- / -- / -- | AC61: -- / -- / -- | AD61: -- / -- / -- | AE61: 0 | AF61: 0 | AH61: ЗЕРКАЛА-БОР(МШЛ)(%)(#)(В) | AI61: 0 | AJ61: 0 | AK61: 0 | AL61: 0 | AM61: 0 | AN61: 0 | AO61: 0 | AR61: 0 | AS61: 0 | AX61: 0 | AY61: 0 | BH61: 0 | BI61: 12 | BJ61: 0 | BL61: 0 | BN61: 0 | BO61: 7 | BP61: 0 | CH61: 0 | CI61: 0
A62: 955167 | B62: D-220 в сб | C62: D-220 в сб. | D62: не наша позиция | E62: Зеркало дополнительное сферическое круглое салонное с хомутом d=18мм БОР | F62: CY | G62: А | I62: 341 | J62: 1 | K62: 0 | L62: 0 | M62: 0 | N62: 1.76 | O62: 5 | P62: 6 | Q62: 1.2 | R62: 3.643939394 | S62: 0 | T62: 6 | U62: 6 | V62: 6 | W62: 0 | X62: 18 | Y62: 1 | Z62: 2046 | AB62: 1 / 1 / 2 | AC62: -- / 2 / -- | AD62: -- / -- / -- | AE62: 6 | AF62: 6.413333333 | AH62: ЗЕРКАЛА-БОР(МШЛ)(%)(#)(В) | AI62: 5 | AJ62: 1.76 | AK62: 1 | AL62: 1.32 | AM62: 0.44 | AN62: 0 | AO62: 0 | AR62: 0.03 | AS62: 0.06 | AT62: 1 | AX62: 0 | AY62: 0.06 | BE62: 2 | BH62: 1 | BI62: 11 | BJ62: 0 | BL62: 0.14 | BN62: 11 | BO62: 9 | BP62: 7 | CH62: 2 | CI62: 5
A63: 021425 | B63: V8(ZL-019) пласт.корпус | C63: АТ-3019 | E63: Зеркало боковое ЗИЛ-5301,ПАЗ основное сферическое с подогревом 24V 425х200мм БОР | G63: + | I63: 180 | J63: 0 | K63: 0 | L63: 0 | M63: 0 | N63: 0 | O63: 0 | P63: 0 | S63: 0 | U63: 0 | V63: 0 | W63: 0 | Z63: 0 | AB63: -- / -- / -- | AC63: -- / -- / -- | AD63: -- / -- / -- | AE63: 0 | AF63: 0 | AH63: ЗЕРКАЛА-БОР(МШЛ)(%)(#)(В) | AI63: 0 | AJ63: 0 | AK63: 0 | AL63: 0 | AM63: 0 | AN63: 0 | AO63: 0 | AR63: 0 | AS63: 0 | AX63: 0 | AY63: 0 | BJ63: 0 | BL63: 0 | BN63: 0 | BO63: 0 | BP63: 0 | CH63: 0 | CI63: 0
A64: 955155 | B64: V-3 (210х160мм) с/о | C64: V-3 (410х160мм) с/о | D64: V3-148 | E64: Зеркало боковое ЗИЛ, ГАЗон Next сферическое с подогревом дополнительное 24V 210х160мм БОР | F64: CX | G64: А | I64: 322 | J64: 19 | K64: 0 | L64: 1 | M64: 1 | N64: 14.96 | O64: 16 | P64: 47 | Q64: 2.604166667 | R64: 2.808377897 | S64: 4 | T64: 28 | U64: 31 | V64: 30 | W64: 0 | X64: 0 | Y64: 0 | Z64: 9016 | AB64: 14 / 8 / 2 | AC64: -- / 8 / -- | AD64: -- / -- / -- | AE64: 41.66666667 | AF64: 42.01333333 | AH64: ЗЕРКАЛА-БОР(МШЛ)(%)(#)(В) | AI64: 16 | AJ64: 14.96 | AK64: 17 | AL64: 7.48 | AM64: 7.48 | AN64: 0 | AO64: 0 | AR64: 0.33 | AS64: 0.32 | AT64: 14 | AW64: 2 | AX64: 0 | AY64: 0.34 | BB64: 5 | BE64: 2 | BH64: 20 | BI64: 41 | BJ64: 1 | BL64: 1 | BM64: 1 | BN64: 61 | BO64: 49 | BP64: 22 | BQ64: 1 | BW64: 1 | BY64: 1 | CB64: 2 | CH64: 6 | CI64: 14
A65: 898988 | B65: V-3 (ZL-076) | C65: V-3 (ZL-076) | D65: V3-148 | E65: Зеркало боковое ЗИЛ,ГАЗ сферическое без обогрева дополнительное 210х160мм БОР | F65: CX | G65: А | I65: 271 | J65: 27 | K65: 0 | L65: 0 | M65: 0 | N65: 3.52 | O65: 13 | P65: 24 | Q65: 1.743589744 | R65: 7.337121212 | S65: 21 | U65: 20 | V65: 15 | W65: 0 | X65: 6 | Y65: 1 | Z65: 0 | AB65: 6 / 1 / 2 | AC65: -- / 2 / -- | AD65: -- / -- / -- | AE65: 22.66666667 | AF65: 25.82666667 | AH65: ЗЕРКАЛА-БОР(МШЛ)(%)(#)(В) | AI65: 13 | AJ65: 3.52 | AK65: 16 | AL65: 3.3 | AM65: 0.22 | AN65: 0 | AO65: 0 | AR65: 0.01 | AS65: 0.06 | AT65: 6 | AW65: 10 | AX65: 0 | AY65: 0.15 | BB65: 21 | BE65: 2 | BH65: 27 | BI65: 33 | BJ65: 0 | BL65: 0.22 | BN65: 29 | BO65: 48 | BP65: 13 | CB65: 5 | CH65: 0 | CI65: 5
A66: 672317 | B66: АТ-3148/Н | C66: АТ33149 | E66: Зеркало боковое широкоугольное сферическое с подогревом (дополнит.) 24V 220х170мм БОР | G66: + | I66: 228 | J66: 0 | K66: 0 | L66: 0 | M66: 0 | N66: 0 | O66: 0 | P66: 0 | S66: 0 | U66: 0 | V66: 0 | W66: 0 | Z66: 0 | AB66: -- / -- / -- | AC66: -- / -- / -- | AD66: -- / -- / -- | AE66: 0 | AF66: 0 | AH66: ЗЕРКАЛА-БОР(МШЛ)(%)(#)(В) | AI66: 0 | AJ66: 0 | AK66: 0 | AL66: 0 | AM66: 0 | AN66: 0 | AO66: 0 | AR66: 0 | AS66: 0 | AX66: 0 | AY66: 0 | BJ66: 0 | BL66: 0 | BN66: 0 | BO66: 0 | BP66: 0 | CH66: 0 | CI66: 0
A67: 898010 | B67: ВРЕИ 203621.009 | C67: ВРЕИ 203621.009 | E67: Зеркало боковое БЕЛАЗ основное сферическое 458х288мм БОР | F67: AY | G67: А | H67: Ц | I67: 4113 | J67: 68 | K67: 0 | L67: 0 | M67: 0 | N67: 8.36 | O67: 20 | P67: 47 | Q67: 3.066666667 | R67: 7.800637959 | S67: 66 | U67: 63 | V67: 50 | W67: 0 | X67: 0 | Y67: 0 | Z67: 0 | AB67: -- / -- / -- | AC67: -- / 2 / -- | AD67: -- / -- / -- | AE67: 61.33333333 | AF67: 65.21333333 | AH67: ЗЕРКАЛА-БОР(МШЛ)(%)(#)(В) | AI67: 20 | AJ67: 8.36 | AK67: 2 | AL67: 8.58 | AM67: -0.22 | AN67: 0 | AO67: 0 | AR67: 0 | AS67: 0.06 | AX67: 0 | AY67: 0.39 | BB67: 66 | BH67: 70 | BI67: 10 | BJ67: 2 | BL67: 0.44 | BN67: 53 | BO67: 3 | BP67: 20 | CA67: 2 | CB67: 2 | CH67: 0 | CI67: 6
A68: 893926 | B68: ГАЗель Next-82013 К | C68: ГАЗель Next-82013 К | E68: Проставка ГАЗель Next зеркала (удлинитель обзора) комплект БОР | F68: CY | G68: П | I68: 1924 | J68: 0 | K68: 0 | L68: 0 | M68: 0 | N68: 0 | O68: 1 | P68: 1 | Q68: 0 | S68: 0 | U68: 0 | V68: 0 | W68: 0 | Z68: 0 | AB68: -- / -- / -- | AC68: 1 / -- / -- | AD68: -- / -- / -- | AE68: 0 | AF68: 0 | AH68: ЗЕРКАЛА-БОР(МШЛ)(%)(#)(В) | AI68: 1 | AJ68: 0 | AK68: 0 | AL68: 0 | AM68: 0 | AN68: 0 | AO68: 0 | AR68: 0 | AS68: 0 | AU68: 1 | AX68: 0 | AY68: 0 | BH68: 1 | BI68: 14 | BJ68: 0 | BL68: 0 | BN68: 1 | BO68: 13 | BP68: 1 | CB68: 1 | CH68: 0 | CI68: 0
A69: 244717 | B69: ГАЗель Next-82014 К | C69: ГАЗель Next-82014 К | E69: Проставка ГАЗель Next зеркала (удлинитель обзора) правая БОР | G69: П | I69: 0 | J69: 0 | K69: 0 | L69: 0 | M69: 0 | N69: 0 | O69: 0 | P69: 0 | S69: 0 | U69: 0 | V69: 0 | W69: 0 | Z69: 0 | AB69: -- / -- / -- | AC69: -- / -- / -- | AD69: -- / -- / -- | AE69: 0 | AF69: 0 | AH69: ЗЕРКАЛА-БОР(МШЛ)(%)(#)(В) | AI69: 0 | AJ69: 0 | AK69: 0 | AL69: 0 | AM69: 0 | AN69: 0 | AO69: 0 | AR69: 0 | AS69: 0 | AX69: 0 | AY69: 0 | BJ69: 0 | BL69: 0 | BN69: 0 | BO69: 0 | BP69: 0 | CH69: 0 | CI69: 0
A70: 244708 | B70: ГАЗель Next-82015 К | C70: ГАЗель Next-82015 К | E70: Проставка ГАЗель Next зеркала (удлинитель обзора) левая БОР | F70: CZ | G70: П | I70: 817 | J70: 0 | K70: 0 | L70: 0 | M70: 0 | N70: 0 | O70: 0 | P70: 0 | S70: 0 | U70: 0 | V70: 0 | W70: 0 | Z70: 0 | AB70: -- / -- / -- | AC70: -- / -- / -- | AD70: -- / -- / -- | AE70: 0 | AF70: 0 | AH70: ЗЕРКАЛА-БОР(МШЛ)(%)(#)(В) | AI70: 0 | AJ70: 0 | AK70: 0 | AL70: 0 | AM70: 0 | AN70: 0 | AO70: 0 | AR70: 0 | AS70: 0 | AX70: 0 | AY70: 0 | BH70: 0 | BI70: 5 | BJ70: 0 | BL70: 0 | BN70: 0 | BO70: 0 | BP70: 0 | CH70: 0 | CI70: 0
A71: 540817 | B71: 145х87 | C71: ГЭН 55 | D71: не треб серт | E71: Элемент обогрева зеркала 12V 145х87мм БОР | F71: BX | G71: А | I71: 97 | J71: 388 | K71: 0 | L71: 0 | M71: 0 | N71: 187.22 | O71: 13 | P71: 375 | Q71: 1.739094826 | R71: 29.51282051 | S71: 353 | U71: 297 | V71: 120 | W71: 0 | X71: 7 | Y71: 1 | Z71: 0 | AB71: 29 / 17 / 4 | AC71: -- / 35 / -- | AD71: -- / -- / -- | AE71: 325.5933333 | AF71: 383.6666667 | AH71: ЗЕРКАЛА-БОР(МШЛ)(%)(#)(В) | AI71: 187.22 | AJ71: 13 | AK71: 45 | AL71: 167.42 | AM71: 19.8 | AN71: 0 | AO71: 0 | AR71: 0.73 | AS71: 1.59 | AT71: 29 | AW71: 10 | AX71: 0 | AY71: 7.61 | BB71: 353 | BE71: 4 | BH71: 388 | BI71: 50 | BJ71: 0 | BL71: 10.1 | BN71: 399 | BO71: 168 | BP71: 22 | CB71: 4 | CH71: 9 | CI71: 24
